{"text_format":"1","workbook":"xlsx","n_sheets":23,"sheets":["Cover Page","Contents","Facility Info","Operational Data","Operational Summary","Perf. Form 1","Energy Form 1","Permit Compliance","Improvements","Public Liasion","CO2 N2O","Residue Quality ","Water","Air (periodic)","Air (CEMS)","NOx","SO2","HCl","TOC","Particulates","NH3","CO 95% 10 min","CO 0.5 hourly"],"not_rendered":{"charts":8,"images":3,"macros":1,"external_links":0,"defined_names":23,"comments":0,"pivot_tables":0},"unopened":[],"bounds":{"document_bytes":16777216,"sheet_cells":100000,"rows_first":2000,"rows_last":500,"rows_between":2000,"halvings":0,"cell_chars":16384,"cell_head_chars":4096},"cells_cut":0,"cells_raw":0,"read":"whole","date_system":"1900"}

{"sheet":"Cover Page","index":0,"n_rows":53,"n_cols":14,"rows_kept":53,"cut":false,"hidden":false,"merged":[[13,13,18,15],[34,1,34,8],[0,3,5,6],[7,1,23,8],[28,1,28,8],[30,1,30,8],[32,1,32,8],[48,2,48,3],[48,6,48,8],[52,2,52,3],[36,1,36,8],[40,2,40,8],[42,2,42,4],[44,2,44,4],[46,2,46,3],[46,6,46,8]]}
[null,null,null,"Add company logo"]
[null,null,null,null,null,null,null,null,null,null,null,null,null,"Version 23.4a (for incinerators) - 15/11/2023"]
[]
[null,null,null,null,null,null,null,null,null,null,null,null,null,"Note that there is another version of this template available for co-incinerators"]
[]
[]
[]
[null,"Add photo"]
[]
[]
[]
[]
[null,null,null,null,null,null,null,null,null,null,null,null,null,"Notes:"]
[null,null,null,null,null,null,null,null,null,null,null,null,null,"This template may require adjustments by individual operators to meet specific reporting requirements as defined in the site Permit(s)"]
[]
[]
[]
[]
[]
[]
[]
[]
[]
[]
[]
[]
[]
[]
[null,"Annual Performance Report 2023"]
[]
[null,"Permit EPR/XP3833DK"]
[]
[null,"Ferrybridge 2"]
[]
[]
[]
[null,"enfinium Ferrybridge 2 Ltd"]
[]
[null,"Year:",2023]
[]
[null,"Address:","Stranglands Lane, Knottingley, West Yorkshire, WF11 8SQ"]
[]
[null,"Tel: ","01977 636963"]
[]
[null,"Email: ","john.warren@enfinium.co.uk"]
[]
[null,"Prepared by:","John Warren",null,null,"Position:","Environmental Manager"]
[]
[null,"Approved by:","Adam Nicholson",null,null,"Position:","Plant Manager"]
[]
[null,"Version:",1]
[]
[null,"Issue Date:","31/01/2024"]

{"sheet":"Contents","index":1,"n_rows":35,"n_cols":11,"rows_kept":35,"cut":false,"hidden":false,"merged":[[4,10,7,14],[8,1,8,6],[3,1,3,6],[4,1,4,6],[5,1,5,6],[6,1,6,6],[7,1,7,6],[21,1,21,6],[9,1,9,6],[10,1,10,6],[11,1,11,6],[13,1,13,6],[14,1,14,6],[15,1,15,6],[16,1,16,6],[17,1,17,6],[18,1,18,6],[19,1,19,6],[20,1,20,6],[12,1,12,6],[32,1,32,6],[22,1,22,6],[23,1,23,6],[24,1,24,6],[27,1,27,6],[28,1,28,6],[31,1,31,6],[34,0,37,9]]}
[{"$f":"+'Cover Page'!$B$29","v":"Annual Performance Report 2023"},null,null,null,{"$f":"+'Cover Page'!$B$33","v":"Ferrybridge 2"}]
[]
["Contents",null,null,null,null,null,null,null,null,null,"Notes:"]
["Section","Subject",null,null,null,null,null,"Page ",null,null,"Section references and Page nos. to be inserted"]
[null,"Facility Information",null,null,null,null,null,3,null,null,"Sections and Subjects may require adjustment by individual operators to meet specific reporting requirements as defined in the sites Permit(s)"]
[null,"Operational Data",null,null,null,null,null,4]
[null,"Operational Summary",null,null,null,null,null,6]
[null,"Performance Form 1",null,null,null,null,null,8]
[null,"Energy Form 1",null,null,null,null,null,10]
[null,"Permit Compliance",null,null,null,null,null,11]
[null,"Improvements",null,null,null,null,null,13]
[null,"Public Liaison",null,null,null,null,null,15]
[null,"Carbon dioxide and nitrous oxide emissions",null,null,null,null,null,16]
[null,"Residue Quality ",null,null,null,null,null,18]
[null,"Emissions to Water",null,null,null,null,null,19]
[null,"Emissions to Air (periodically monitored)",null,null,null,null,null,20]
[null,"Emissions to Air (continuously monitored)",null,null,null,null,null,22]
[null,"Oxides of Nitrogen emissions",null,null,null,null,null,23]
[null,"Sulphur Dioxide emissions",null,null,null,null,null,24]
[null,"Hydrogen Chloride emissions",null,null,null,null,null,25]
[null,"Total Organic Carbon emissions",null,null,null,null,null,26]
[null,"Particulate Matter emissions",null,null,null,null,null,27]
[null,"Ammonia emissions",null,null,null,null,null,28]
[null,"Carbon Monoxide emissions",null,null,null,null,null,29]
[]
[]
["Version Control"]
["Section","Information",null,null,null,null,null,"Date"]
[]
[]
["Distribution"]
["Copy","Name, Role",null,null,null,null,null,"No."]
[]
[]
["This report is required under the Industrial Emissions Directive’s Article 55(2) requirements on reporting and public information on waste incineration plants and co-incineration plants, which require the operator to produce an annual report on the functioning and monitoring of the plant and make it available to the public. "]

{"sheet":"Facility Info","index":2,"n_rows":20,"n_cols":11,"rows_kept":20,"cut":false,"hidden":false,"merged":[[4,0,15,8],[19,0,30,8],[4,10,13,13],[19,10,28,13]]}
[{"$f":"+'Cover Page'!$B$29","v":"Annual Performance Report 2023"},null,null,null,{"$f":"+'Cover Page'!$B$33","v":"Ferrybridge 2"}]
[]
["Plant Description and Design",null,null,null,null,null,null,null,null,null,"Notes:"]
[]
["Ferrybridge 2 is designed for the disposal of waste with energy recovery in an incineration plant and is permitted under Section 5.1 A(1)(b) the incineration of non-hazardous waste in an incineration plant with a capacity exceeding 3 tonnes per hour. The installation is located on land to the north of Ferrybridge 1 site, close to the A1(M). It lies approximately 1km northwest of the village of Ferrybridge, 2km northwest of Knottingley, 1.8km southeast of Ferry Fryston, and 3km northeast of Pontefract, at grid reference SE 472 254. The facility has a throughput limit of 725,000 tonnes per year of waste which can include refuse derived fuel, waste wood and commercial and industrial waste. The facility consists of two combustion lines and generates approximately 80 MWe of electricity, of which approximately 73 MWe is exported. Moving grate technology is used for burning the waste material. The furnace design ensures that a temperature of at least 850 degrees celcius for a period of at least two seconds is achieved in the combustion chamber. Auxillary burners firing a low sulphur gas oil are automatically triggered by online process monitoring equipment are used to ensure the temperature does not fall below 850 degrees celcius. Hot gases from the furnace pass in a boiler. Steam raised in the boiler is passed to a turbine to generate electricity for export to the National Grid.",null,null,null,null,null,null,null,null,null,"Include summary of plant design, design capacity, no. of combustion lines, electrical and heat capacity and any other general information that descibes the facility, its location and purpose "]
[]
[]
[]
[]
[]
[]
[]
[]
[]
[]
[]
[]
["Summary of Operational Processes and Procedures"]
[]
["Key processes include waste reception, waste storage, water use, drainage, flue gas and air supply systems, boilers, treatment of exhaust gases, treatment and storage of residues and water recycling, stacks, devices and systems for controlling incineration operations, recording and monitoring conditions. The site has an Environmental Management System accredited to ISO 14001.  \n\nHealth and Safety management system covering all aspects of health and safety comprising policy, procedures, risk assessments, Key Performance Indicators (KPIs) and objectives reviewed periodically. Accreditation to ISO 45001:2018 was obtained in April 2020.\n\nMaintenance across the facilities is broken down in to reactive (breakdown) maintenance, and planned preventive maintenance. Preventive maintenance is conducted via the philosophy of Risk Based Inspections to ensure the safety of personnel and availability of the plant is cost effectively maintained.",null,null,null,null,null,null,null,null,null,"Include summary of key processes and procedures such as (but not limited to); waste reception, control rooms, grate, bed and bolier, energy & heat  generation, cooling systems, residue management, emission controls, health and safety systems, maintenance"]

{"sheet":"Operational Data","index":3,"n_rows":63,"n_cols":10,"rows_kept":63,"cut":false,"hidden":false,"merged":[[5,9,6,9],[55,0,56,0],[22,1,44,1],[3,1,3,2],[7,1,8,1],[12,1,15,1],[17,1,18,1],[7,9,9,9],[10,9,14,9]]}
[{"$f":"+'Cover Page'!$B$29","v":"Annual Performance Report 2023"},null,null,null,{"$f":"+'Cover Page'!$B$33","v":"Ferrybridge 2"}]
[]
["Operational Data"]
["Plant Size",725000,null,"tonnes pa",80,"MWth",73,"MWe",null,"Notes:"]
["No. of combustion lines",2,null,"No. of Turbines:",null,1,null,null,null,"* - RDF to include SRF "]
[null,null,null,null,null,null,null,null,null,"** - Combusted tonnage = tonnes delivered in period + (tonnes in bunker at start of period – tonnes in bunker at end of period), or equivalent calculation depending on plant type"]
["Waste types received","Unit","Q1","Q2","Q3","Q4","Year Total","%"]
["Refuse Derived Fuel * - H'hold/LA",null,168981.24,161298.81999999998,149578,169165.94,{"$f":"SUM(C8:F8)","v":649024},{"$f":"IF(G8>0,G8/$G$9,\"-\")","v":1}]
["Total waste received",null,{"$f":"SUM(C8:C8)","v":168981.24},{"$f":"SUM(D8:D8)","v":161298.81999999998},{"$f":"SUM(E8:E8)","v":149578},{"$f":"SUM(F8:F8)","v":169165.94},{"$f":"SUM(C9:F9)","v":649024}]
["Total waste combusted **",null,164955.24,164167.81999999998,153645,172642.94,{"$f":"SUM(C10:F10)","v":655411}]
[null,null,null,null,null,null,null,null,null,"Password for protected cells\nA password has been set to prevent accidental  editing of cells with formulae. \nIf you still need to make an edit for some reason then the password = 1234"]
["Energy Usage / Export","Unit","Q1","Q2","Q3","Q4","Year Total","KWh/te"]
["Power Generated","MWh",173028.79,174911.94,155949.09,171544.72,{"$f":"SUM(C13:F13)","v":675434.53999999992},{"$f":"IF(G13>0,G13*1000/$G$10,\"-\")","v":1030.5511198316779}]
["Power Exported",null,158152.20000000001,157739.59999999998,141771.20000000001,156550.6,{"$f":"SUM(C14:F14)","v":614213.6},{"$f":"IF(G14>0,G14*1000/$G$10,\"-\")","v":937.14264789574781}]
["Power Used on site",null,{"$f":"C13-C14","v":14876.589999999997},{"$f":"D13-D14","v":17172.340000000026},14177.889999999985,14994.119999999995,{"$f":"SUM(C15:F15)","v":61220.94},{"$f":"IF(G15>0,G15*1000/$G$10,\"-\")","v":93.40847193593028}]
["Power Imported",null,0,0,143.71850000000001,143.52000000000001,287.23850000000004,{"$f":"IF(G16>0,G16*1000/$G$10,\"-\")","v":0.43825706312527568}]
["Parasitic Load","%",{"$f":"IF(C13>0,1-C14/(C13+C16),\"-\")","v":8.5977541656506951E-2},{"$f":"IF(D13>0,1-D14/(D13+D16),\"-\")","v":9.8177059839368419E-2},{"$f":"IF(E13>0,1-E14/(E13+E16),\"-\")","v":9.1750597850252524E-2},{"$f":"IF(F13>0,1-F14/(F13+F16),\"-\")","v":8.8169346951194716E-2},{"$f":"IF(G13>0,1-G14/(G13+G16),\"-\")","v":9.1025893284864656E-2}]
["Thermal Energy Produced ***","MWh",null,null,null,null,{"$f":"SUM(C18:F18)","v":0},{"$f":"IF(G18>0,G18*1000/$G$10,\"-\")","v":"-"}]
["Thermal Energy Exported ***",null,null,null,null,null,0,{"$f":"IF(G19>0,G19*1000/$G$10,\"-\")","v":"-"}]
["R1 value (if applicable)","R1",null,null,null,null,0.9]
[]
["Waste Disposal & Recovery","Unit","Q1","Q2","Q3","Q4","Year Total","% inputs"]
["APC Residues - produced","tonnes",6724.52,6424.8,5601.9500000000007,6936.22,{"$f":"SUM(C23:F23)","v":25687.49},{"$f":"IF(G23>0,G23/$G$10,\"-\")","v":3.9192949157093794E-2}]
["APCr Waste",null,6.71,0,14.76,10.5,31.97,{"$f":"IF(G24>0,G24/$G$10,\"-\")","v":4.8778552694416173E-5}]
["APCr Filter Bags",null,1,17,0,7.61,{"$f":"SUM(C25:F25)","v":25.61},3.9074718001376235E-5]
["Oil contaminated solid waste",null,2.2000000000000002,3.3,0,10.08,{"$f":"SUM(C26:F26)","v":15.58},2.377134347760413E-5]
["Gases in pressurised containers",null,0,0.2,0,0,0.2,3.0515203437232516E-7]
["Waste paint",null,0.5,0,0,0,0.5,7.6288008593081287E-7]
["Fluorescent tubes",null,0,1E-3,0,0,1E-3,1.5257601718616258E-9]
["Waste oil",null,1.06,0,0.53400000000000003,0,1.5940000000000001,2.4320617139474317E-6]
["Ion exchange resin",null,7.4999999999999997E-2,0,0,0,7.4999999999999997E-2,1.1443201288962193E-7]
["Waste lime",null,0,0,0,2,2,3.0515203437232515E-6]
[null,null,null,null,null,null,0,"-"]
["IBA - produced",null,29700.489999999998,32594.54,31091.760000000002,34614.22,128001.01000000001,0.19529884301606168]
["Ferrous metals removed from bottom ash",null,1926.32,1865.74,1936.52,2383.6,8112.18,1.2377241150972444E-2]
["Dry Mixed Recyclables",null,0.62,0.52,0.34,0.34,1.8200000000000003,2.7768835127881594E-6]
["General Waste",null,11.28,5.88,19.18,6.22,42.56,6.4936352914430796E-5]
["Waste ferrous metal",null,7.16,5.0999999999999996,12.3,9.94,34.5,5.2638725929226087E-5]
["Waste Electrical and Electronic Equipment",null,1,0.25,0,0,1.25,1.9072002148270322E-6]
["Fly ash",null,7.3449999999999998,0,0,0,7.3449999999999998,1.1206708462323641E-5]
["Wood",null,1.2,1.1000000000000001,2.44,2.12,6.86,1.0466714778970752E-5]
["Rubble",null,17.18,0,2.12,0,19.3,2.9447171316929377E-5]
["Sewage",null,5.74,0,4.1399999999999997,0,9.879999999999999,1.507451049799286E-5]
["IBA waste",null,0,0,26.9,204.68,231.58,3.5333554059971531E-4]
[null,null,null,null,null,null,0,"-"]
[]
["Raw Material Usage","Unit","Q1","Q2","Q3","Q4","Year Total","kg or Ltr /te"]
["Mains Water","ltrs",15668200,16068000,12565400,15981700,{"$f":"SUM(C48:F48)","v":60283300},{"$f":"IF(G48>0,G48/$G$10,\"-\")","v":91.97785816838595}]
["Other Water","ltrs",14872834,13654112,16826055,20199100,65552101,{"$f":"IF(G49>0,G49/$G$10,\"-\")","v":100.01678488765064}]
["Ammonia","kgs",54905.750899999999,27353.444300000003,20891.261299999998,37908,141058.4565,0.21522137483197565]
["Activated Carbon","kgs",68545,90360,61404,62409,282718,0.43135986426837514]
["Lime / hydrated lime","kgs",3082065,2968242,2652773,3050066,11753146,17.932482060874779]
["Fuel oil","ltrs",129284.02499999999,120925.45199999999,195171.05600000001,202413,647793.53300000005,0.98837757224092981]
[]
["Summary ","Line/Unit","Q1","Q2","Q3","Q4","Year Total",null,"Hrs in year "]
["Availability of waste combustion by line, hrs ****",1,2059,2166,1950,2180,{"$f":"SUM(C56:F56)","v":8355},{"$f":"+G56/$I$56","v":0.95376712328767121},8760]
[null,2,2127.6999999999998,2084.9,1962.9,2035.9,8211.4,{"$f":"+G57/$I$56","v":0.93737442922374425}]
["Overall Availability, mean avg. of all lines, hrs",null,{"$f":"AVERAGE(C56:C57)","v":2093.35},{"$f":"AVERAGE(D56:D57)","v":2125.4499999999998},1956.45,2107.9499999999998,{"$f":"AVERAGE(G56:G57)","v":8283.2000000000007},{"$f":"+G58/$I$56","v":0.94557077625570785}]
["Hours of turbine operations, hrs",1,1416,2184,2088,2180,7868,{"$f":"+G59/$I$56","v":0.89817351598173512}]
["Net Calorific Value of waste","MJ/kg",11.647,11.91,12.26,11.96,{"$f":"AVERAGE(C60:F60)","v":11.94425}]
["Abnormal Events","qty.",0,1,2,0,3,{"$f":"IF(G61>0,\"yes\",\"no\")","v":"yes"}]
["Abnormal operation","hours",0,0.5,4.5,0,5,{"$f":"+(G62)/I56","v":5.7077625570776253E-4}]
["Permit Breaches","qty.",2,0,0,2,4,{"$f":"IF(G63>0,\"yes\",\"no\")","v":"yes"}]

{"sheet":"Operational Summary","index":4,"n_rows":13,"n_cols":11,"rows_kept":13,"cut":false,"hidden":false,"merged":[[12,0,20,8],[12,10,19,13],[4,0,4,8],[5,0,5,8],[6,0,6,8],[7,0,7,8],[8,0,8,8]]}
[{"$f":"+'Cover Page'!$B$29","v":"Annual Performance Report 2023"},null,null,null,{"$f":"+'Cover Page'!$B$33","v":"Ferrybridge 2"}]
[]
["Summary of Plant Operations and Maintenance during the reporting year",null,null,null,null,null,null,null,null,null,"Notes:"]
[]
["Key Operational Activities\nFebruary\tLine 1 Pitstop Outage\nMarch\t\tLine 2 furnace explosion caused ID fan trip.\nMarch\t\tLine 2 ID fan bearing repair\nApril\t\tLine 1 waste crane fibre optic fault\nApril\t\tLine 2 Pitstop Outage\nJune\t\tRam Feeder Control Block\nJuly\t\tLine 2 Superheater Drain Repair\nAugust\t\tLine 1 Ash Extractor blockage\nAugust\t\tLine 2 PAC Dosing System Failure\nSeptember\tLine 1 Outage\nSeptember\tLine 2 Outage\nNovember\tLine 2 ID Fan Motor Replacement\nDecember\tLine 1 Trip due to comms fault\nDecember\tLine 1 Trip due to comms fault\nDecember\tLine 2 Trip due to comms fault\nDecember\tLine 1 Waste blockage resulted in blocked ash extractors.",null,null,null,null,null,null,null,null,null,"Include summary of key operational and/or mainteanance activity undertaken in the year, such as any major component upgrades and/or replacements "]
["February 2023 – Line 1 - Mechanical \nBoiler drone inspection. Full inspection of pass 1,2 and 3\nAsh extractor - Ash extractor wear plate inspections. Wear plates replaced. \n2nd/3rd pass conveyor - Internals replaced. \nVibrating conveyors - NDT thickness checks carried out. \nEconomiser screw feeder replaced. \nBoiler Grate - Line 1 grate inspection and repairs. \nBoiler Grate - NDT carried out by IRIS. \nGrate - Defective roof elements replaced. \nGrate cooling - NRV replaced. \nBoiler drum level column master valve replaced. \nSuperheaters Roof vent valve gland packing replaced. \nPrimary air fan Inspect and clean impellor. \n\nFebruary 2023 – Line 1 - Electrical \nTransformer and LV Board Maintenance - Annual maintenance of Transformer, and LV Boards within a substation.  \nQuantum VFD service - The service included a general clean down, filter cleaning, terminal tightness, visual inspection, and module phase alignment.  \nACC fan motor terminal inspection and checks "]
["April 2023 – Line 2 - Mechanical \nBoiler drone inspection - Full inspection of pass 1,2 and 3 \nAsh extractor - Ash extractor wear plate inspections. Wear plates replaced. \n2nd/3rd pass conveyor - Internals replaced. \nVibrating conveyors- NDT thickness checks carried out. \nBoiler Grate inspections and repairs.  \nBoiler Grate - NDT. \nFeed hopper - Boiler hopper wear plate inspection/replacement.\nSuperheaters - Roof vent valve gland packing replaced. \nPrimary air fan - Inspection and impellor cleaned. \n\nApril 2023 – Line 2 – Electrical \nTransformer and LV Board Maintenance - Annual maintenance of Transformer, and LV Boards within a substation. \nVFD service - The service included a general clean down, filter cleaning, terminal tightness, visual inspection, and module phase alignment."]
["September 2023 – Line 1 – Mechanical \nFull clean and inspection of internal boiler/furnace gas path. \nLower ram feeder cover plates replaced. \nNDT checks on boiler. \nInspection of mechanical grate on lines 1 and 2 inclusive of minor repairs.  \nAll 4 hydraulic ram feeders replaced as part of maintenance strategy. \nThorough statutory inspections carried out as per PSSR WSE. \nFull inspection and overhaul of ancillary plant equipment inclusive of Ash, FGT, APCR systems. \nInspections of site wide safety valves and test certs provided. \nSite wide valve inspections and repairs. \nEconomiser outlet expansion joints replaced.  \n\nSeptember 2023 – Line 1 – Electrical \nTransformer and LV Board Maintenance - Annual maintenance of Transformer, and LV Boards within a substation. \nCircuit breaker service and protection testing \nQuantum VFD service - The service included a general clean down, filter cleaning, terminal tightness, visual inspection, and module phase alignment. \nTransmitter calibrations \n400VDC UPS service and Inspection \nDCS upgrades"]
["September 2023 – Line 2 – Mechanical \nFull clean and inspection of internal boiler/furnace gas path.  \nLower ram feeder cover plates replaced. \nBoiler NDT checks.\nInspection of mechanical grate on lines 1 and 2 inclusive of minor repairs.  \nHydraulic ram feeder replaced. \nThorough statutory inspections carried out as per PSSR WSE. \nFull inspection and overhaul of ancillary plant equipment inclusive of Ash, FGT, APCR systems. \nInspections of site wide safety valves and test certs provided. \nSite wide valve inspections and repairs. \nSuperheater repairs. \nEconomiser repairs.  \n\nSeptember 2023 – Line 2 – Electrical \nTransformer and LV Board Maintenance - Annual maintenance of Transformer, and LV Boards within a substation. \nCircuit breaker service and protection testing \nQuantum VFD service - The service included a general clean down, filter cleaning, terminal tightness, visual inspection, and module phase alignment. \nTransmitter calibrations \n400VDC UPS service and Inspection \nValmet upgrades DCS\n\nSeptember 2023 – Common– Electrical \nTransformer and LV Board Maintenance - Annual maintenance of Transformer, and LV Boards within a substation. \nCircuit breaker service and protection testing \nQuantum VFD service - The service included a general clean down, filter cleaning, terminal tightness, visual inspection, and module phase alignment. \nTransmitter calibrations \nIPB testing "]
[]
["Summary of Residue Handling for the reporting year"]
[]
["Incinerator Bottom Ash (IBA) from Ferrybridge 2 is stored in the Ash Bunker and then outloaded by the ash crane grab to receiving dumper trucks. Since operations began in 2019, the IBA has been collected and taken to the Blue Phoenix Ferrybridge site, which is adjacent to the north of the Ferrybridge 2 site. Movement of the IBA is carried out by dumper truck via a predominantly internal road network to the Blue Phoenix site where it is processed into Incinerator Bottom Ash Aggregate (IBAA).\n\nAPCr is collected in silos and then discharged to receiving tanker for off-site disposal. The APCr is transported to OCO Technology and occasionally to Castle Environmental Ltd. Castle Environmental receives APCr at two sites located in Ilkeston (Derbyshire) and Stoke on Trent, whereas OCO Technology has one site located in Leeds. Castle Environmental currently recycles approximately 70% of the APCr whereas OCO Technology recycles 100%.",null,null,null,null,null,null,null,null,null,"Include in here a summary of residue handling regimes and destinations "]

{"sheet":"Perf. Form 1","index":5,"n_rows":65,"n_cols":10,"rows_kept":65,"cut":false,"hidden":false,"merged":[[32,2,32,3],[32,4,32,5],[12,0,12,1],[11,2,11,3],[11,4,11,5],[19,2,19,3],[19,4,19,5],[28,0,28,1],[28,2,28,3],[28,4,28,5],[11,0,11,1],[27,0,27,1],[27,2,27,3],[27,4,27,5],[65,0,66,9],[64,0,64,9],[58,2,58,4],[14,0,14,1],[13,2,13,3],[13,4,13,5],[13,6,13,7],[13,8,13,9],[13,0,13,1],[16,0,16,1],[15,2,15,3],[15,4,15,5],[15,6,15,7],[15,8,15,9],[15,0,15,1],[14,2,14,3],[14,4,14,5],[14,6,14,7],[32,0,32,1],[17,0,17,1],[18,0,18,1],[19,0,19,1],[23,0,23,1],[31,0,31,1],[17,4,17,5],[17,6,17,7],[17,8,17,9],[16,2,16,3],[16,4,16,5],[16,6,16,7],[16,8,16,9],[11,6,11,7],[11,8,11,9],[12,2,12,3],[12,4,12,5],[12,6,12,7],[12,8,12,9],[26,0,26,1],[26,2,26,3],[26,4,26,5],[26,6,26,7],[26,8,26,9],[21,0,21,1],[21,2,21,3],[21,4,21,5],[21,6,21,7],[21,8,21,9],[22,0,22,9],[24,0,24,1],[23,2,23,3],[23,4,23,5],[30,2,30,3],[30,4,30,5],[30,6,30,7],[30,8,30,9],[29,0,29,1],[29,2,29,3],[29,4,29,5],[29,6,29,7],[29,8,29,9],[9,0,9,9],[10,0,10,1],[10,2,10,3],[10,4,10,5],[10,6,10,7],[10,8,10,9],[23,6,23,7],[23,8,23,9],[24,2,24,3],[24,4,24,5],[24,6,24,7],[24,8,24,9],[19,6,19,7],[19,8,19,9],[18,2,18,3],[18,4,18,5],[18,6,18,7],[18,8,18,9],[20,0,20,3],[20,4,20,5],[20,6,20,7],[20,8,20,9],[14,8,14,9],[17,2,17,3],[2,0,2,4],[2,6,2,8],[3,1,3,4],[5,3,5,4],[5,6,5,7],[8,0,8,1],[8,2,8,3],[8,4,8,5],[8,6,8,7],[8,8,8,9],[25,8,25,9],[33,0,33,1],[33,2,33,3],[33,4,33,5],[33,6,33,7],[35,0,35,3],[35,4,35,5],[35,6,35,7],[35,8,35,9],[32,6,32,7],[32,8,32,9],[31,2,31,3],[31,4,31,5],[31,6,31,7],[31,8,31,9],[28,6,28,7],[28,8,28,9],[25,0,25,1],[25,2,25,3],[25,4,25,5],[25,6,25,7],[27,6,27,7],[27,8,27,9],[30,0,30,1],[37,0,37,9],[33,8,33,9],[38,0,39,9],[34,0,34,3],[34,4,34,5],[34,6,34,7],[34,8,34,9],[45,0,45,3],[45,4,45,5],[45,7,45,8],[46,0,46,3],[46,4,46,5],[46,7,46,8],[42,0,42,3],[42,7,42,8],[43,0,43,3],[43,4,43,5],[43,7,43,8],[44,0,44,3],[44,4,44,5],[44,7,44,8],[62,0,62,1],[49,0,49,9],[50,0,51,9],[58,0,58,1],[60,0,60,1],[61,0,61,1],[47,0,47,3],[47,4,47,5],[47,7,47,8],[48,0,48,3],[48,4,48,5],[48,7,48,8]]}
[{"$f":"+'Cover Page'!C39","v":2023}," Annual Reporting Performance Form 1"]
[]
[{"$f":"+'Cover Page'!B31","v":"Permit EPR/XP3833DK"},null,null,null,null,"Operator: ",{"$f":"+'Cover Page'!B37:I37","v":0}]
["Facility:",{"$f":"+'Cover Page'!B33:I33","v":"Ferrybridge 2"},null,null,null,"Form:","Performance 1"]
[]
["Reporting  Period from: ",null,null,"2023-01-01",null,"to:","2023-12-31"]
[]
[{"$f":"+A1","v":2023},"Annual Reporting of Waste Disposal and Recovery"]
["Waste Description",null,"Disposal Route(s)",null,"Disposal Tonnes",null,"Recovery Tonnes",null,"% / tonne of waste incinerated"]
["1) Hazardous Wastes"]
["APC Residues",null,"D9/R5",null,370.18,null,25317.31,null,{"$f":"IF((E11+G11)>0,(E11+G11)/'Operational Data'!$G$10, \"-\")","v":3.9192949157093794E-2}]
["APCr waste",null,"D9/D15",null,39.58,null,0,null,{"$f":"IF((E12+G12)>0,(E12+G12)/'Operational Data'!$G$10, \"-\")","v":6.0389587602283143E-5}]
["APCr filter bags",null,"D15",null,28.08,null,0,null,{"$f":"IF((E13+G13)>0,(E13+G13)/'Operational Data'!$G$10, \"-\")","v":4.2843345625874447E-5}]
["Oil contaminated solid waste",null,"R13",null,0,null,5.5,null,{"$f":"IF((E14+G14)>0,(E14+G14)/'Operational Data'!$G$10, \"-\")","v":8.3916809452389415E-6}]
["Gases in pressurised containers",null,"R13",null,0,null,0.2,null,{"$f":"IF((E15+G15)>0,(E15+G15)/'Operational Data'!$G$10, \"-\")","v":3.0515203437232516E-7}]
["Waste paint",null,"R13",null,0,null,0.5,null,{"$f":"IF((E16+G16)>0,(E16+G16)/'Operational Data'!$G$10, \"-\")","v":7.6288008593081287E-7}]
["Bulk waste oil",null,"R13",null,0,null,1.59,null,{"$f":"IF((E17+G17)>0,(E17+G17)/'Operational Data'!$G$10, \"-\")","v":2.425958673259985E-6}]
["Ion exchange resin",null,"D15",null,0.08,null,0,null,{"$f":"IF((E18+G18)>0,(E18+G18)/'Operational Data'!$G$10, \"-\")","v":1.2206081374893007E-7}]
["Fluorescent tubes",null,"R13",null,0,null,0,null,{"$f":"IF((E19+G19)>0,(E19+G19)/'Operational Data'!$G$10, \"-\")","v":"-"}]
["Lime waste",null,"D15",null,2,null,0,null,{"$f":"IF((E20+G20)>0,(E20+G20)/'Operational Data'!$G$10, \"-\")","v":3.0515203437232515E-6}]
["Total Hazardous Waste",null,null,null,{"$f":"SUM(E11:F20)","v":439.91999999999996},null,{"$f":"SUM(G11:H20)","v":25325.100000000002},null,{"$f":"IF((E21+G21)>0,(E21+G21)/'Operational Data'!$G$10, \"-\")","v":3.9311241343218228E-2}]
[]
["2) Non-Hazardous Wastes"]
["IBA - produced",null,"R5",null,0,null,128001.01,null,{"$f":"IF((E24+G24)>0,(E24+G24)/'Operational Data'!$G$10, \"-\")","v":0.19529884301606168}]
["Ferrous metals removed from bottom ash",null,"R4",null,0,null,8112.18,null,{"$f":"IF((E25+G25)>0,(E25+G25)/'Operational Data'!$G$10, \"-\")","v":1.2377241150972444E-2}]
["Dry Mixed Recyclables",null,"R13",null,0,null,1.82,null,{"$f":"IF((E26+G26)>0,(E26+G26)/'Operational Data'!$G$10, \"-\")","v":2.776883512788159E-6}]
["General Waste",null,"R13",null,0,null,42.56,null,{"$f":"IF((E27+G27)>0,(E27+G27)/'Operational Data'!$G$10, \"-\")","v":6.4936352914430796E-5}]
["Waste ferrous metal",null,"R4",null,0,null,34.5,null,{"$f":"IF((E28+G28)>0,(E28+G28)/'Operational Data'!$G$10, \"-\")","v":5.2638725929226087E-5}]
["Waste Electrical and Electronic Equipment",null,"R13",null,0,null,1.25,null,{"$f":"IF((E29+G29)>0,(E29+G29)/'Operational Data'!$G$10, \"-\")","v":1.9072002148270322E-6}]
["Fly ash",null,"D15",null,7.3449999999999998,null,0,null,{"$f":"IF((E30+G30)>0,(E30+G30)/'Operational Data'!$G$10, \"-\")","v":1.1206708462323641E-5}]
["Wood",null,"R3",null,0,null,6.86,null,{"$f":"IF((E31+G31)>0,(E31+G31)/'Operational Data'!$G$10, \"-\")","v":1.0466714778970752E-5}]
["Rubble",null,"R13",null,0,null,19.3,null,{"$f":"IF((E32+G32)>0,(E32+G32)/'Operational Data'!$G$10, \"-\")","v":2.9447171316929377E-5}]
["Sewage",null,"D8",null,9.8800000000000008,null,0,null,{"$f":"IF((E33+G33)>0,(E33+G33)/'Operational Data'!$G$10, \"-\")","v":1.5074510497992864E-5}]
["IBA waste",null,"D5",null,231.58,null,0,null,{"$f":"IF((E34+G34)>0,(E34+G34)/'Operational Data'!$G$10, \"-\")","v":3.5333554059971531E-4}]
["Total Non-Hazardous Waste",null,null,null,{"$f":"SUM(E24:F34)","v":248.80500000000001},null,{"$f":"SUM(G24:H34)","v":136219.47999999998},null,{"$f":"IF((E35+G35)>0,(E35+G35)/'Operational Data'!$G$10, \"-\")","v":0.20821787397526129}]
["TOTAL WASTE",null,null,null,{"$f":"+E35+E21","v":688.72499999999991},null,{"$f":"+G35+G21","v":161544.57999999999},null,{"$f":"IF((E36+G36)>0,(E36+G36)/'Operational Data'!$G$10, \"-\")","v":0.24752911531847954}]
[]
["Operator’s comments :"]
[]
[]
[]
[{"$f":"+A1","v":2023},"Annual Reporting of Water and Other Raw Material Usage"]
["Raw Material",null,null,null,"Usage",null,"Unit","Specific Useage",null,"Unit"]
["Mains Water",null,null,null,{"$f":"+'Operational Data'!G48","v":60283300},null,"m3",{"$f":"IF(E44>0,E44/'Operational Data'!$G$10,\"-\")","v":91.97785816838595},null,"m3/te"]
["Total Water",null,null,null,{"$f":"+'Operational Data'!G49+'Operational Data'!G48","v":125835401},null,"m3",{"$f":"IF(E45>0,E45/'Operational Data'!$G$10,\"-\")","v":191.99464305603658},null,"m3/te"]
["Ammonia",null,null,null,{"$f":"+'Operational Data'!G50","v":141058.4565},null,"kg",{"$f":"IF(E46>0,E46/'Operational Data'!$G$10,\"-\")","v":0.21522137483197565},null,"kg/te"]
["Activated Carbon",null,null,null,{"$f":"+'Operational Data'!G51","v":282718},null,"kg",{"$f":"IF(E47>0,E47/'Operational Data'!$G$10,\"-\")","v":0.43135986426837514},null,"kg/te"]
["Lime / hydrated lime / Sodium Bicarb.",null,null,null,{"$f":"+'Operational Data'!G52","v":11753146},null,"kg",{"$f":"IF(E48>0,E48/'Operational Data'!$G$10,\"-\")","v":17.932482060874779},null,"kg/te"]
[]
["Operator’s comments :"]
[]
[]
[]
[]
[]
[]
[]
[{"$f":"+A42","v":2023},"Annual Reporting of other performance indicators "]
["Parameter",null,"Results by Line"]
[null,null,"A1","A2","Turbine 1"]
["Operating hours for the year, hours",null,8355,8211,7868]
["Number of periods of abnormal operation, qty.",null,0,10]
["Cumulative hours of abnormal operation for this year, hours",null,0,5]
[]
["Operator’s comments :"]

{"sheet":"Energy Form 1","index":6,"n_rows":17,"n_cols":7,"rows_kept":17,"cut":false,"hidden":false,"merged":[[2,6,2,8],[4,1,4,4],[6,3,6,4],[6,6,6,7],[8,0,8,2],[8,3,8,4],[8,6,8,8],[9,0,9,2],[9,3,9,4],[9,6,9,8],[10,0,10,2],[10,3,10,4],[10,6,10,8],[11,0,11,2],[11,3,11,4],[11,6,11,8],[12,0,12,2],[12,3,12,4],[12,6,12,8],[13,0,13,2],[13,3,13,4],[13,6,13,8],[15,0,15,8],[16,0,16,8]]}
[{"$f":"+'Cover Page'!C39","v":2023}," Annual Reporting of Energy Usage/Export"]
[]
[{"$f":"+'Cover Page'!B31","v":"Permit EPR/XP3833DK"},null,null,null,null,"Operator: ",{"$f":"+'Cover Page'!B37:I37","v":0}]
[]
["Facility:",{"$f":"+'Cover Page'!B33:I33","v":"Ferrybridge 2"},null,null,null,"Form:","Energy 1"]
[]
["Reporting  Period from: ",null,null,{"$f":"+'Perf. Form 1'!D6:E6","v":"2023-01-01"},null,"to:",{"$f":"+'Perf. Form 1'!G6:H6","v":"2023-12-31"}]
[]
["Energy Source",null,null,"Energy Usage",null,"Unit","Specific Useage (KWh/tonne incinerated"]
["Electricity Produced",null,null,{"$f":"+'Operational Data'!G13","v":675434.53999999992},null,"MWh",{"$f":"+'Operational Data'!H13","v":1030.5511198316779}]
["Electricity Imported   ",null,null,{"$f":"+'Operational Data'!G16","v":287.23850000000004},null,"MWh",{"$f":"+'Operational Data'!H16","v":0.43825706312527568}]
["Electricity Exported",null,null,{"$f":"+'Operational Data'!G14","v":614213.6},null,"MWh",{"$f":"+'Operational Data'!H14","v":937.14264789574781}]
["Gas Oil",null,null,571.63300000000004,null,"tonnes"]
["Steam/hot water exported",null,null,{"$f":"+'Operational Data'!G19","v":0},null,"GWh",{"$f":"+'Operational Data'!H19","v":"-"}]
[]
["Operator’s comments :"]
["Review of Combined Heat and Power (CHP) options. It is a permit requirement that the viability of CHP implementation is reviewed at least every four years. Information submitted in the annual report for 2022 provides relevant information and there are no updates for 2023. "]

{"sheet":"Permit Compliance","index":7,"n_rows":39,"n_cols":12,"rows_kept":39,"cut":false,"hidden":false,"merged":[[17,0,17,8],[28,0,28,8],[35,1,35,3],[35,4,35,6],[35,7,35,8],[36,4,36,6],[36,1,36,3],[37,1,37,3],[37,4,37,6],[36,7,36,8],[37,7,37,8],[22,1,22,3],[22,4,22,6],[22,7,22,9],[23,1,23,3],[23,4,23,6],[32,4,32,6],[32,7,32,9],[33,1,33,3],[33,4,33,6],[23,7,23,8],[26,4,26,6],[31,1,31,3],[38,4,38,8],[9,0,9,1],[9,2,9,4],[9,5,9,8],[10,0,10,1],[10,2,10,4],[10,5,10,8],[11,0,11,1],[11,2,11,4],[11,5,11,8],[12,0,12,1],[12,2,12,4],[12,5,12,8],[13,0,13,1],[13,2,13,4],[13,5,13,8],[7,0,7,1],[7,2,7,8],[8,0,8,1],[8,2,8,4],[8,5,8,8],[14,0,14,1],[14,2,14,4],[14,5,14,8],[15,0,15,1],[15,2,15,4],[15,5,15,8],[21,7,21,9],[19,1,19,3],[19,4,19,6],[19,7,19,8],[20,1,20,3],[20,4,20,6],[20,7,20,8],[34,1,34,3],[34,4,34,6],[34,7,34,9],[29,1,29,3],[29,4,29,6],[29,7,29,9],[30,1,30,3],[30,4,30,6],[30,7,30,9],[31,4,31,6],[31,7,31,9],[32,1,32,3],[33,7,33,8],[8,11,15,11],[24,1,24,3],[24,4,24,6],[26,1,26,3],[24,7,24,8],[26,7,26,8],[25,1,25,3],[25,7,25,8],[25,4,25,6],[18,1,18,3],[18,4,18,6],[18,7,18,9],[21,1,21,3],[21,4,21,6]]}
[{"$f":"+'Cover Page'!$B$29","v":"Annual Performance Report 2023"},null,null,null,{"$f":"+'Cover Page'!$B$33","v":"Ferrybridge 2"}]
[]
["Summary of Permit Compliance"]
[]
["Compliance with permit limits for continuously monitored pollutants"]
[]
["The plant met its emission limits as shown in the table below:"]
["Substance",null,"Percentage time compliant during operationNote 1",null,null,null,null,null,null,null,null,"Notes:"]
[null,null,"Half-hourly limit",null,null,"Daily limit",null,null,null,null,null,"Note 1: Please report to 2 decimal places, i.e. xx.xx%\n\nNote 2: Please provide a brief summary of each notification or non-compliance in the table (rather than just referring to notifications that were sent to the Regulator), including stating the value of measured result for any ELV exceedances.   \n\n"]
["Particulates",null,0.99990000000000001,null,null,1]
["Oxides of nitrogen",null,1,null,null,1]
["Sulphur dioxide",null,1,null,null,1]
["Carbon monoxide",null,"100.00% of 95% of 10-min averages",null,null,1]
["Total organic carbon",null,1,null,null,1]
["Hydrogen chloride",null,1,null,null,1]
["Ammonia",null,1,null,null,1]
[]
["Summary of any notifications or non-compliances under the permit"]
["Date","Summary of notification or non-compliance [including Line/Reference]Note 2",null,null,"Reason ",null,null,"Measures taken to prevent reoccurrence"]
["2023-03-01","Telephone and quarterly report notification for Line 1 exceedance of the heavy metals ELV (0.691mg/m3 aginst an ELV of 0.5mg/m3) from H1 periodic stack test.",null,null,"Investigation ongoing",null,null,"Re-test carried out, results demonstrate compliance with ELV."]
["2023-03-01","Telephone and quarterly report notification for Line 2 exceedance of the hydrogen fluoride ELV (3.08mg/m3 aginst an ELV of 2mg/m3) from H1 periodic stack test.",null,null,"Investigation ongoing",null,null,"Re-test carried out, results demonstrate compliance with ELV."]
["2023-03-18","Schedule 5 Part A submitted for exceedance of dust 1/2 hourly average from 16:30 to 16:59hrs on 18/03/23.",null,null,"Occurred due to unstable combustion conditions during startup.",null,null,"Plant was in startup at the time of the incident and no additional measures are deemed necessary."]
["2023-03-30","Schedule 5 Part B submitted for above notification.",null,null,"As above",null,null,"As above"]
["2023-06-19","Notification to EA in quarterly report for Line 2 exceedance of particulate matter 1/2 hourly average of 48.11mg/m3. ",null,null,"Occurred due to the failure of plant (ID fan) and therefore is deemed an Abnormal Operations event. The upper limit of 150mg/m3 was not exceeded at any time during this event.",null,null,"Planned preventative maintenance on sample lines, operator training on CEMS related issues."]
["2023-09-20","Notification to EA in quarterly report for Line 2 exceedance of particulate matter 1/2 hourly average of 30.08mg/m3. ",null,null,"Occurred due to the failure of plant (ID fan) and therefore is deemed an Abnormal Operations event. The upper limit of 150mg/m3 was not exceeded at any time during this event.",null,null,"Planned preventative maintenance on sample lines, operator training on CEMS related issues."]
["2023-11-08","Telephone and quarterly report notification for Line 1 exceedance of the hydrogen fluoride ELV (6.1mg/m3 aginst a pre-BREF ELV of 2mg/m3) from H2 periodic stack test.",null,null,"Investigation ongoing",null,null,"Re-test carried out, results demonstrate compliance with ELV."]
["2023-11-08","Telephone and quarterly report notification for Line 2 exceedance of the hydrogen fluoride ELV (2.3mg/m3 aginst a pre-BREF ELV of 2mg/m3) from H2 periodic stack test.",null,null,"Investigation ongoing",null,null,"Re-test carried out, results demonstrate compliance with ELV."]
[]
["Summary of any complaints received and actions to taken to resolve them."]
["Date","Summary of complaint [including Line/Reference]",null,null,"Reason *",null,null,"Measures taken to prevent reoccurrence"]
["2023-02-28","External complaint about noise",null,null,"Unsubstantiated",null,null,"Discussed at morning meeting, site visit to locality but unable to hear noise."]
["2023-03-06","External complaint about litter in the A162 grass verges.",null,null,"Unsubstantiated",null,null,"Discussed at morning meeting, complainant contacted and informed of actions taken at site level to minimise litter from RDF delivery vehicles."]
["2023-04-11","External complaint about loose RDF coming out the top of fuel delviery vehicle.",null,null,"Unsubstantiated",null,null,"Discussed at morning meeting, complainant contacted and informed of actions taken at site level to minimise litter from RDF delivery vehicles."]
["27/07/2023​","External complaint about RDF delivery vehicles queuing on Kirkhaw Lane",null,null,"Substantiated",null,null,"Discussed at morning meeting, early morning visit identified numerous RDF delivery vehicles parked, photographic and dashcam footage provided to dayteams and site management."]
["09/08/2023​","External complaint about noise",null,null,"Unsubstantiated",null,null,"Discussed at morning meeting, investigation found source of noise to be piling works on construction site to the east of F1/F2 boundary. Informed complainant."]
["12/09/2023​","External complaint of loose RDF coming out the top of a delivery vehicle.",null,null,"Attributable",null,null,"Discussed at morning meeting, fuel supplier informed, offending trailer taken off road pending repairs."]
["20/09/2023​","External complaint of loose RDF coming out the top of a delivery vehicle.",null,null,"Unsubstantiated",null,null,"Discussed at morning meeting, investigation showed vehicle had not attended either F1 or F2 sites."]
["2023-12-05","External complaint about lorries queuing on Kirkhaw Lane and onto Stranglands Lane. ",null,null,"Attributable",null,null,"Discussed at morning meeting, issued raised with fuel suppliers."]
[null,null,null,null,"* including whether substantiated by the operator or the EA"]

{"sheet":"Improvements","index":8,"n_rows":32,"n_cols":5,"rows_kept":32,"cut":false,"hidden":false,"merged":[[30,0,30,8],[31,0,40,8],[4,0,4,8],[5,0,9,8],[11,0,11,8],[12,0,20,8],[22,0,22,8],[23,0,26,8]]}
[{"$f":"+'Cover Page'!$B$29","v":"Annual Performance Report 2023"},null,null,null,{"$f":"+'Cover Page'!$B$33","v":"Ferrybridge 2"}]
[]
["Summary of Plant Improvements"]
[]
["Summary of any efficiency improvements that have been completed within the year."]
["Burner fuel oil delivery pump skid upgrade.\nAPCR offload area access platforms. \nFabric filter replacement Line 2. \nTurbine hall fire protection upgrades. \nReactor screw trace heating installation"]
[]
[]
[]
[]
[]
["Summary of any permit improvement conditions that have been completed within the year and the resulting environmental benefits."]
["IC2 The operator shall submit a report to the Environment Agency on whether waste feed to the plant can be proven to have a low and stable mercury content. The report shall have regard to BAT 4 of the BAT conclusions, be based on historic mercury emissions monitoring data and have regard to the Environment Agency Mercury Monitoring Protocol.\nReport submitted to the EA within specified timeframe, decision pending.\n\nIC3 The operator shall submit a report to the Environment Agency on whether dioxin emissions to air are stable. The report shall have regard to BAT 4 of the BAT conclusions, be based on historic dioxin emissions monitoring data and have regard to the Environment Agency Dioxins Monitoring Protocol.\nReport submitted to the EA within specified timeframe, decision pending.\n\nIC4 The operator shall perform a study to determine the extent to which the operation of the current systems in place at the plant to minimise NOx emissions can be further optimised such that emissions are reduced as far as possible below 180 mg/Nm3 as a daily average, without significantly increasing emissions of other pollutants or having a significant negative effect on plant operation, reliability or bottom ash quality. The study shall be based on the results of trials carried out at the installation and shall have regard to the recommendations for test conditions set out in Section 5.4.3 of report titled ‘Establishing factors that influence NOx reduction at waste incineration plant to levels below the upper end of the BAT-AELs’ (dated 14/01/2022), or other methodology agreed in writing with the Environment Agency. A written report of the study shall be submitted to the Environment Agency which shall include but not necessarily be limited to the following:\n• A brief description of the currently installed measures at the installation to minimise NOx emissions, including details of how the reagent dosing system responds to emissions monitoring data and historic data which illustrates the current achievable level of daily NOx emissions. \n• The results of trials conducted to further reduce daily average NOx emissions using currently installed measures, including:\n - a description of the parameters that were varied during the trial e.g. ammonia or urea feed rates, physical form of urea injected, air flows, and the range over which they were varied.\n - the levels of NOx achieved and associated levels of ammonia and nitrous oxide emissions and reagent consumption.\n - observed effects and predicted long-term impacts on plant operation, reliability and maintenance regime.\n - any changes to the composition of the bottom ash and boiler ash and the implications of those changes for the ability to process and use the ash, as well as for the \npollution potential of the ash both during processing and its subsequent use as a secondary aggregate.\n - any other relevant cross-media effects.\nThe report shall also include a description of the extent to which current systems in place at the plant to minimise NOx emissions can be optimised on a permanent basis, including justification and an implementation plan where relevant.\nReport submitted to the EA within specified timeframe, decision pending."]
[]
[]
[]
[]
[]
[]
[]
[]
[]
["Summary of any changes to the plant or operating techniques which required a variation to the permit and a summary of the resulting environmental impact."]
["Permit variation to allow acceptance of Mixed Municipal Waste under EWC code 20 03 01. Revised odour management plan and copy of waste acceptance procedure submitted to and approved by EA. Variation determined and consolidated permit issued 09/03/2023."]
[]
[]
[]
[]
[]
[]
["Summary of any other improvements made to the plant or planned to be made and a summary of the resulting environmental benefits."]
["None"]

{"sheet":"Public Liasion","index":9,"n_rows":21,"n_cols":5,"rows_kept":21,"cut":false,"hidden":false,"merged":[[14,0,14,1],[14,2,14,8],[5,0,5,1],[5,2,5,8],[6,0,7,1],[6,2,7,8],[8,0,9,1],[8,2,9,8],[10,0,11,1],[10,2,11,8],[13,0,13,8],[15,0,16,1],[15,2,16,8],[17,0,18,1],[17,2,18,8],[20,0,20,8]]}
[{"$f":"+'Cover Page'!$B$29","v":"Annual Performance Report 2023"},null,null,null,{"$f":"+'Cover Page'!$B$33","v":"Ferrybridge 2"}]
[]
["Details of Public & Stakeholder Liasion"]
[]
["Summary of events held during the reporting year."]
["Date",null,"Description"]
["2023-04-18",null,"Community liaison group meeting held"]
[]
["2023-07-11",null,"Community liaison group meeting held"]
[]
["2023-11-22",null,"Transport liaison group meeting held"]
[]
[]
["List of events planned for next year"]
["Date",null,"Description"]
["April/July/October 2024",null,"Community liaison group meetings to continue at regular intervals through the year, dates to be confirmed."]
[]
["April/October 2024",null,"Transport liaison group meetings to continue at regular intervals through the year, dates to be confirmed."]
[]
[]
["If you wish to be involved in the public liasion programme, please contact Philip Curds philip.curds@enfinium.co.uk"]

{"sheet":"CO2 N2O","index":10,"n_rows":23,"n_cols":5,"rows_kept":23,"cut":false,"hidden":false,"merged":[[20,1,20,2],[23,0,23,2],[16,1,16,2],[8,1,8,2],[11,1,11,2],[4,0,4,2],[9,0,9,2],[13,0,13,2],[17,0,17,2]]}
[{"$f":"+'Cover Page'!$B$29","v":"Annual Performance Report 2023"},{"$f":"+'Cover Page'!$B$33","v":"Ferrybridge 2"}]
[]
["Carbon dioxide emissions and biogenic content of waste inputs",null,null,null,"Notes:"]
[]
["Carbon dioxide emissions (all types of plant)"]
["Annual mass of carbon dioxide released","tonnes ",707245]
["Annual mass of carbon dioxide released per tonne of waste burned","t CO2 / t waste ",1.08]
["Annual mass of carbon dioxide released per MWh of energy exported","t CO2 / MWh export ",1.1499999999999999]
["Description of how annual carbon dioxide mass emission has been calculated. \nSee Note 1","Data from CEMS has been used to calculate annual carbon dioxide mass emission.",null,null,"Note 1: Where available, data from CO2 CEMS should be used. \nOtherwise, only where no CEMS data is available, a suitable emissions factor should be used based on the tonnage of waste burned e.g.0.942 tCO2/t waste as per Tolvik report 2022, or other justified emissions factor  - refer to embedded Environment Agency guidance note above or updated version for suitable descriptive text."]
["Nitrous oxide emissions (only plants which use ammonia or urea to abate NOx emissions)"]
["Annual mass emissions of nitrous oxide","tonnes N2O",10.170999999999999]
["Description of how annual nitrous oxide mass emission has been calculated\nSee Note 2","Data from CEMS has been used to calculate annual nitrous oxide mass emission.",null,null,"Note 2: Where available, data from N2O CEMS should be used. \nIf no CEMS data is available, from periodic monitoring. Otherwise, a suitable emissions factor should be used based on the tonnage of waste burned e.g. 0.0981 kgN20/t waste as per 2021 Pollution Inventory data for plants with urea-based SNCR - refer to embedded Environment Agency guidance note above or updated version for suitable descriptive text."]
["Total annual carbon dioxide and nitrous oxide emissions. \nSee Note 3. ","tonnes CO2e",710276,null,"Note 3: Total annual carbon dioxide and nitrous oxide emissions reported as carbon dioxide equivalent where 1 tonne nitrous oxide is equivalent to 298 tonne carbon dioxide"]
["Biogenic CO2 emissions (See Note 4)",null,null,null,"Note 4: Only plants combusting residual municipal waste, refuse derived fuel or solid recovered fuel"]
["Percentage of total carbon dioxide emissions arising from biogenic waste","%",0.47599999999999998]
["No. of measurements undertaken","Number",538]
["Description of how percentage biogenic carbon dioxide emissions have been measured or calculated.\nSee Note 5","Calculated from lab analysis via a UKAS accredited method ISO 216:2021. ",null,null,"Note 5: Examples include direct measurement via C14 method or BIOMA software - refer to embedded Environment Agency guidance note above or updated version for suitable descriptive text, quoting standards where relevant. \nOtherwise, as an approximation (and in lieu of any more accurate metrics which may be developed in future), the measured or estimated biogenic fraction by net calorific value can be assumed to be the same as the biogenic CO2 fraction of the total CO2 emissions from the plant. "]
["Biogenic fraction of waste feedstock (See Note 4)"]
["Yearly average biogenic percentage of the waste by net calorific value (NCV)","%",0.47799999999999998]
["If sampling undertaken, no. of samples used to ascertain average biogenic % above","Number",538]
["Description of how biogenic percentage (by NCV) has been calculated or estimated. \nSee Note 6","From fuel model which takes weighbridge data and RDF test results sampled at source (calculated from lab analysis via a UKAS accredited method ISO 21644:2021), then weights each suppliers tonnage on a heat input basis.",null,null,"Note 6: Where available, data from waste sampling should be used; otherwise, an estimated figure with justification can be used, or a figure assumed on the basis of a national average e.g. 2017 WRAP data for residual waste of 51.8% biogenic energy content - refer to embedded Environment Agency guidance note above or updated version for suitable descriptive text, quoting standards where relevant. "]
[]
["Comments:"]

{"sheet":"Residue Quality ","index":11,"n_rows":23,"n_cols":6,"rows_kept":23,"cut":false,"hidden":false,"merged":[[5,0,6,6],[10,0,11,1],[10,2,11,6],[19,3,19,4],[15,2,16,2],[16,3,16,4],[16,5,16,6],[15,3,15,6],[14,0,14,6],[8,0,8,6],[9,0,9,1],[9,2,9,6],[23,0,25,6],[20,3,20,4],[22,0,22,6],[15,0,16,1],[17,0,17,1],[18,0,18,1],[19,0,19,1],[20,0,20,1],[17,3,17,4],[18,3,18,4],[17,5,17,6],[18,5,18,6],[19,5,19,6],[20,5,20,6]]}
[{"$f":"+'Cover Page'!$B$29","v":"Annual Performance Report 2023"},null,null,null,{"$f":"+'Cover Page'!$B$33","v":"Ferrybridge 2"}]
[]
["Residue Quality Monitoring Requirements"]
[]
["Summary of monitoring undertaken and compliance"]
["Monthly IBA hazard assessments and annual full hazardous property assessments, quarterly IBA and APC residue compliance monitoring, annual characterisation of IBA and APC residue. Analysis and reporting carried out by WRc."]
[]
[]
["Commentary on any specific events"]
["Date & Event",null,"Description"]
["October 2023 - IBA and APC Annual Characterisation Report",null,"Results of the annual characterisation of IBA and APC residues from Ferrybridge 2, including a full hazardous property assessment of IBA as required by the ESA Protocol 2018."]
[]
[]
[]
["Residue Quality Monitoring Results"]
["Parameter (unit) ",null,"Limit","Normal Operation "]
[null,null,null,"Bottom ash  ",null,"APC Residues"]
["Loss on Ignition (average %)",null,"<5%",1.64]
["Total Organic Carbon (average %)",null,"<3%",0.3]
["No. of Assessments Undertaken",null,"---",24,null,4]
["No. of Hazardous Results",null,"---",0]
[]
["Comments :"]

{"sheet":"Water","index":12,"n_rows":14,"n_cols":9,"rows_kept":14,"cut":false,"hidden":false,"merged":[[5,0,5,8],[7,0,7,8],[8,0,8,1],[8,2,8,8],[11,0,11,8],[12,0,12,2],[12,3,12,4],[9,0,9,1],[9,2,9,8],[13,0,13,2]]}
[{"$f":"+'Cover Page'!$B$29","v":"Annual Performance Report 2023"},null,null,null,{"$f":"+'Cover Page'!$B$33","v":"Ferrybridge 2"}]
[]
["Emissions to Water"]
[]
["Summary of monitoring undertaken and compliance"]
["Frequent sampling and analysis of attenuation pond water, tested for pH and conductivity, odour and appearance prior to discharge to Fryston Beck. "]
[]
["Commentary on any specific events"]
["Date & Event",null,"Description"]
["2023-06-15",null,"pH of 9.76 measured at attenuation pond outlet. Water levels very low due to prolonged dry spell. No evidence of site spillage or release of material likely to cause pollution. No discharges to water course were carried out until fresh rainwater had diluted the attenuation pond water sufficiently to give results below the permitted discharge limit."]
[]
["Emissions to Water / Sewer"]
["Parameter",null,null,"Monitoring Frequency",null,"Limit","Target","Max.","Average"]
["No parameters set in permit",null,null,"None",null,"None","None","None","None"]

{"sheet":"Air (periodic)","index":13,"n_rows":71,"n_cols":10,"rows_kept":71,"cut":false,"hidden":false,"merged":[[4,0,4,6],[8,0,9,1],[8,5,8,6],[8,3,9,4],[8,2,9,2],[5,7,7,10],[8,7,10,10],[7,0,7,6],[5,0,5,6],[10,0,10,1],[15,0,15,1],[16,0,16,1],[17,0,17,1],[12,0,12,1],[13,0,13,1],[14,0,14,1],[11,0,11,1],[10,3,10,4],[11,3,11,4],[38,0,38,6],[24,0,24,1],[25,0,25,1],[21,0,21,1],[22,0,22,1],[36,0,36,1],[26,0,26,1],[27,0,27,1],[28,0,28,1],[29,0,29,1],[30,0,30,1],[31,0,31,1],[36,3,36,4],[28,3,28,4],[29,3,29,4],[35,3,35,4],[37,0,37,6],[18,0,18,1],[19,0,19,1],[20,0,20,1],[33,3,33,4],[34,3,34,4],[32,0,32,1],[33,0,33,1],[34,0,34,1],[35,0,35,1],[23,0,23,1],[31,3,31,4],[26,3,26,4],[32,3,32,4],[18,3,18,4],[19,3,19,4],[20,3,20,4],[21,3,21,4],[22,3,22,4],[23,3,23,4],[30,3,30,4],[24,3,24,4],[25,3,25,4],[27,3,27,4],[12,7,13,9],[14,7,15,7],[14,8,15,8],[14,9,15,9],[17,3,17,4],[12,3,12,4],[13,3,13,4],[14,3,14,4],[15,3,15,4],[16,3,16,4],[42,0,42,1],[42,3,42,4],[43,0,43,1],[43,3,43,4],[44,0,44,1],[44,3,44,4],[39,0,39,6],[40,0,41,1],[40,2,41,2],[40,3,41,4],[40,5,40,6],[48,0,48,1],[48,3,48,4],[49,0,49,1],[49,3,49,4],[50,0,50,1],[50,3,50,4],[45,0,45,1],[45,3,45,4],[46,0,46,1],[46,3,46,4],[47,0,47,1],[47,3,47,4],[54,0,54,1],[54,3,54,4],[55,0,55,1],[55,3,55,4],[56,0,56,1],[56,3,56,4],[51,0,51,1],[51,3,51,4],[52,0,52,1],[52,3,52,4],[53,0,53,1],[53,3,53,4],[60,0,60,1],[60,3,60,4],[61,0,61,1],[61,3,61,4],[62,0,62,1],[62,3,62,4],[57,0,57,1],[57,3,57,4],[58,0,58,1],[58,3,58,4],[59,0,59,1],[59,3,59,4],[69,0,69,6],[70,0,70,6],[66,0,66,1],[66,3,66,4],[67,0,67,1],[67,3,67,4],[68,0,68,1],[68,3,68,4],[63,0,63,1],[63,3,63,4],[64,0,64,1],[64,3,64,4],[65,0,65,1],[65,3,65,4]]}
[{"$f":"+'Cover Page'!$B$29","v":"Annual Performance Report 2023"},null,null,null,{"$f":"+'Cover Page'!$B$33","v":"Ferrybridge 2"}]
[]
["Emissions to Air (periodically monitored)"]
[]
["Summary of monitoring undertaken, standards used and compliance",null,null,null,null,null,null,"Notes:"]
["Bi-annual monitoring undertaken in February/March 2023 and November 2023. Standards used include EN 14385, MID 14385, EN 1948, ISO 11338, ISO 15713, EN 14789, TGN M22 and EN 16911-1 (MID). March 2023 reported elevated heavy metals on line 1 and elevated hydrogen fluoride on line 2. Re-tests demonstrated results below the relevant emission limit value. November 2023 reported elevated hydrogen fluoride on lines 1 and 2. Re-tests demonstrated results below the emission limit value. All other parameters tested demonstrate compliance against the relevant emission limit values.",null,null,null,null,null,null,"Template may require adjustment for any bespoke monitoring requirements of permit - please also check that all default ELV values, reference periods and the stated oxygen reference value match those for your plant, and edit if necessary!"]
[]
["Results of emissions to air that are periodically monitored - oxygen reference 6% "]
["Substance",null,"Ref. Period","Emission Limit Value*",null,"Average",null,"User to add additional tables as necessary, depending on whether quarterly or bi-annual reporting is required for the compliance year"]
[null,null,null,null,null,"A1","A2"]
["Hydrogen fluoride",null,"1 hr","2 mg/m3",null,0.8,3.08]
["Cd and Th and their compounds",null,"0.5-8hrs","0.05 mg/m3",null,2.3E-3,7.3999999999999999E-4]
["Hg and its compounds",null,"0.5-8hrs","0.05 mg/m3",null,5.7999999999999996E-3,2.3E-3,"* Denotes limits that were in force until 2 December 2023; from 3 December 2023 the following new limits applied (those not listed remained unchanged):"]
["Sb, As, Pb, Cr, Co, Cu, Mn, Ni, V and their compounds",null,"0.5-8hrs","0.5 mg/m3",null,0.69099999999999995,3.5000000000000003E-2]
["Dioxins & Furans (I-TEQ)",null,"6-8hrs","0.1 ng/m3",null,2.0299999999999999E-2,1.4200000000000001E-2,"Substance","Reference Period","Emission Limit Value"]
["PCBs (WHO-TEQ Humans / Mammals)",null,"6-8hrs","None set ng/m3",null,1.3780000000000001E-3,4.3800000000000002E-4]
["PCBs (WHO-TEQ Fish)",null,"6-8hrs","None set ng/m3",null,6.2000000000000003E-5,4.0000000000000003E-5,"Hydrogen fluoride","Average of three consecutive measurements of at least 30 minutes each","1 mg/m3"]
["PCBs (WHO-TEQ Birds)",null,"6-8hrs","None set ng/m3",null,2.6640000000000001E-3,4.7850000000000002E-3,"Cd and Th and their compounds","Average of three consecutive measurements of at least 30 minutes each","0.02 mg/m3"]
["Dioxins & Furans (WHO-TEQ Humans / Mammals)",null,"6-8hrs","None set ng/m3",null,1.83E-2,1.23E-2,"Hg and its compounds","Average of three consecutive measurements of at least 30 minutes each","0.02 mg/m3"]
["Dioxins & Furans (WHO-TEQ Fish)",null,"6-8hrs","None set ng/m3",null,2.0299999999999999E-2,1.41E-2,"Sb, As, Pb, Cr, Co, Cu, Mn, Ni, V and their compounds","Average of three consecutive measurements of at least 30 minutes each","0.3 mg/m3"]
["Dioxins & Furans (WHO-TEQ Birds)",null,"6-8hrs","None set ng/m3",null,0.36,2.4299999999999999E-2,"Dioxins & Furans (I-TEQ)","6-8hrs","0.06 ng/m3"]
["Anthanthrene",null,"6-8hrs","None set µg/m3",null,0.49,0.36]
["Benzo(a)anthracene",null,"6-8hrs","None set µg/m3",null,4.1999999999999997E-3,3.5999999999999999E-3]
["Benzo(a)pyrene",null,"6-8hrs","None set µg/m3",null,1.5E-3,1.5E-3]
["Benzo(b)fluoranthene",null,"6-8hrs","None set µg/m3",null,5.4999999999999997E-3,8.0000000000000002E-3]
["Benzo(b)naptho(2,1-d) thiophene",null,"6-8hrs","None set µg/m3",null,2.0999999999999999E-3,2.5000000000000001E-3]
["Benzo(c)phenanthrene",null,"6-8hrs","None set µg/m3",null,1.5E-3,2.0999999999999999E-3]
["Benzo(ghi)perylene",null,"6-8hrs","None set µg/m3",null,4.5999999999999999E-3,2.3E-3]
["Benzo(k)fluoranthene",null,"6-8hrs","None set µg/m3",null,1.6999999999999999E-3,3.2000000000000002E-3]
["Cholanthrene",null,"6-8hrs","None set µg/m3",null,1.5E-3,1.5E-3]
["Chrysene",null,"6-8hrs","None set µg/m3",null,1.6000000000000001E-3,1.2E-2]
["Cyclopenta(cd)pyrene",null,"6-8hrs","None set µg/m3",null,6.7000000000000002E-3,1.5E-3]
["Dibenzo(ai)pyrene",null,"6-8hrs","None set µg/m3",null,1.5E-3,1.5E-3]
["Dibenzo(ah)anthracene",null,"6-8hrs","None set µg/m3",null,1.5E-3,1.5E-3]
["Fluoranthene",null,"6-8hrs","None set µg/m3",null,7.5999999999999998E-2,5.3999999999999999E-2]
["Indeno(123-cd) pyrene",null,"6-8hrs","None set µg/m3",null,2.0999999999999999E-3,2.5999999999999999E-3]
["Naphthalene",null,"6-8hrs","None set µg/m3",null,0.38,0.26]
["Comments :"]
["H1 stack test results from testing carried out between 27th February and 2nd March 2023. Line 1 result for heavy metals above the ELV, re-test carried out produced result below the ELV. Line 2 result for hydrogen fluoride above the ELV, re-test carried out produced result below the ELV."]
["Results of emissions to air that are periodically monitored - oxygen reference 6% "]
["Substance",null,"Ref. Period","Emission Limit Value*",null,"Average"]
[null,null,null,null,null,"A1","A2"]
["Hydrogen fluoride",null,"1 hr","2 mg/m3",null,6.1,2.2999999999999998]
["Cd and Th and their compounds",null,"0.5-8hrs","0.05 mg/m3",null,1E-3,1E-3]
["Hg and its compounds",null,"0.5-8hrs","0.05 mg/m3",null,2E-3,2E-3]
["Sb, As, Pb, Cr, Co, Cu, Mn, Ni, V and their compounds",null,"0.5-8hrs","0.5 mg/m3",null,4.2999999999999997E-2,0.05]
["Dioxins & Furans (I-TEQ)",null,"6-8hrs","0.1 ng/m3",null,1.12E-2,1.2999999999999999E-3]
["PCBs (WHO-TEQ Humans / Mammals)",null,"6-8hrs","None set ng/m3",null,1.2899999999999999E-3,1.33E-3]
["PCBs (WHO-TEQ Fish)",null,"6-8hrs","None set ng/m3",null,6.0000000000000002E-5,6.0000000000000002E-5]
["PCBs (WHO-TEQ Birds)",null,"6-8hrs","None set ng/m3",null,3.0500000000000002E-3,2.7299999999999998E-3]
["Dioxins & Furans (WHO-TEQ Humans / Mammals)",null,"6-8hrs","None set ng/m3",null,0.01,2.41E-2]
["Dioxins & Furans (WHO-TEQ Fish)",null,"6-8hrs","None set ng/m3",null,1.0999999999999999E-2,2.7900000000000001E-2]
["Dioxins & Furans (WHO-TEQ Birds)",null,"6-8hrs","None set ng/m3",null,2.1100000000000001E-2,4.6199999999999998E-2]
["Anthanthrene",null,"6-8hrs","None set µg/m3",null,1E-3,1E-3]
["Benzo(a)anthracene",null,"6-8hrs","None set µg/m3",null,2.8999999999999998E-3,5.7000000000000002E-3]
["Benzo(a)pyrene",null,"6-8hrs","None set µg/m3",null,1E-3,1E-3]
["Benzo(b)fluoranthene",null,"6-8hrs","None set µg/m3",null,1.6000000000000001E-3,1.6000000000000001E-3]
["Benzo(b)naptho(2,1-d) thiophene",null,"6-8hrs","None set µg/m3",null,1.1000000000000001E-3,3.8999999999999998E-3]
["Benzo(c)phenanthrene",null,"6-8hrs","None set µg/m3",null,1E-3,2.5000000000000001E-3]
["Benzo(ghi)perylene",null,"6-8hrs","None set µg/m3",null,1E-3,3.2000000000000002E-3]
["Benzo(k)fluoranthene",null,"6-8hrs","None set µg/m3",null,1E-3,2.3E-3]
["Cholanthrene",null,"6-8hrs","None set µg/m3",null,1E-3,1E-3]
["Chrysene",null,"6-8hrs","None set µg/m3",null,3.8E-3,1.49E-2]
["Cyclopenta(cd)pyrene",null,"6-8hrs","None set µg/m3",null,1E-3,1E-3]
["Dibenzo(ai)pyrene",null,"6-8hrs","None set µg/m3",null,1E-3,1E-3]
["Dibenzo(ah)anthracene",null,"6-8hrs","None set µg/m3",null,1E-3,1E-3]
["Fluoranthene",null,"6-8hrs","None set µg/m3",null,7.9600000000000004E-2,0.12509999999999999]
["Indeno(123-cd) pyrene",null,"6-8hrs","None set µg/m3",null,1E-3,2E-3]
["Naphthalene",null,"6-8hrs","None set µg/m3",null,0.31090000000000001,0.18770000000000001]
["Comments :"]
["H2 stack test results from testing carried out between 6th and 9th November 2023. Line 1 and Line 2 results for hydrogen fluoride above the ELV, re-tests carried out produced results below the ELV."]

{"sheet":"Air (CEMS)","index":14,"n_rows":26,"n_cols":14,"rows_kept":26,"cut":false,"hidden":false,"merged":[[26,0,27,12],[11,0,12,0],[5,0,6,12],[9,0,10,0],[9,2,10,2],[9,1,10,1],[9,3,9,4],[9,5,9,6],[8,0,8,6],[12,7,13,7],[12,8,13,8],[12,9,13,9],[10,7,11,9],[24,0,24,12]]}
[{"$f":"+'Cover Page'!$B$29","v":"Annual Performance Report 2023"},null,null,null,null,null,null,null,{"$f":"+'Cover Page'!$B$33","v":"Ferrybridge 2"}]
[]
["Emissions to Air (continously monitored)"]
[null,null,null,null,null,null,null,null,null,null,null,null,null,"Notes:"]
["Summary of monitoring undertaken, standards used and compliance",null,null,null,null,null,null,null,null,null,null,null,null,"Template may require adjustment for any bespoke monitoring requirements of permit"]
["Continuous emissions monitoring of Oxides of Nitrogen, Sulphur Dioxide, Hydrogen Chloride, Total Organic Carbon, Particulates, Ammonia and Carbon Monoxide (also Flow, O2, N2O) to EN14181. Instruments used PCME QAL 181, Environement SA MIR FT multigas analyser and Graphite 52M Flame Ionisation Detector (FID). All results demonstrate 100% compliance with the daily emission limit values. All results (except particulates due to abnormal operations conditions) demonstrate 100% compliance with 1/2 hour average emission limit values.",null,null,null,null,null,null,null,null,null,null,null,null,"Please check that all default ELV values match those for your plant and edit if necessary!"]
[null,null,null,null,null,null,null,null,null,null,null,null,null,"Report to 1 decimal place"]
[]
["Results of emissions to air that are continuously monitored (maximum and average values for each line) - oxygen reference 11%"]
["Substance","Reference Period","Emission Limit Value**","A1",null,"A2"]
[null,null,null,"Max.","Avg.","Max.","Avg.","** Denotes limits that were in force until 2 December 2023; from 3 December 2023 the following new limits applied (those not listed remained unchanged):"]
["Oxides of nitrogen","Daily mean","180 mg/m3 ",{"$f":"NOx!O19","v":171.31},{"$f":"NOx!N19","v":165.56916666666669},{"$f":"NOx!O34","v":170.95},{"$f":"NOx!N34","v":161.91583333333332}]
[null,"½ hourly mean","400 mg/m3 ",{"$f":"NOx!M19","v":269},{"$f":"NOx!L19","v":165.58333333333334},{"$f":"NOx!M34","v":207},{"$f":"NOx!L34","v":161.83333333333334},"Substance","Reference Period","Emission Limit Value"]
["Particulates","Daily mean","10 mg/m3",{"$f":"Particulates!O19","v":4.49},{"$f":"Particulates!N19","v":1.5191666666666668},{"$f":"Particulates!O34","v":7.46},{"$f":"Particulates!N34","v":1.7775000000000001}]
[null,"½ hourly mean","30 mg/m3 ",{"$f":"Particulates!M19","v":41},{"$f":"Particulates!L19","v":1.5},{"$f":"Particulates!M34","v":48},{"$f":"Particulates!L34","v":1.75},"Oxides of nitrogen","Daily mean","180 mg/m3 "]
["Total Organic Carbon ","Daily mean","10 mg/m3 ",{"$f":"TOC!O19","v":1.57},{"$f":"TOC!N19","v":0.45416666666666666},{"$f":"TOC!O34","v":0.86},{"$f":"TOC!N34","v":0.44333333333333336},"Particulates","Daily mean","5 mg/m3 "]
[null,"½ hourly mean","20 mg/m3 ",{"$f":"TOC!M19","v":10},{"$f":"TOC!L19","v":0.41666666666666669},{"$f":"TOC!M34","v":18},{"$f":"TOC!L34","v":8.3333333333333329E-2},"Hydrogen chloride","Daily mean","8 mg/m3 "]
["Hydrogen chloride ","Daily mean","10 mg/m3 ",{"$f":"HCl!O19","v":8.64},{"$f":"HCl!N19","v":5.6983333333333333},{"$f":"HCl!O34","v":8.9600000000000009},{"$f":"HCl!N34","v":6.4274999999999993},"Sulphur dioxide","Daily mean","40 mg/m3 "]
[null,"½ hourly mean","60 mg/m3 ",{"$f":"HCl!M19","v":22},{"$f":"HCl!L19","v":5.5},{"$f":"HCl!M34","v":39},{"$f":"HCl!L34","v":6.333333333333333},"Ammonia","Daily mean","15 mg/m3 "]
["Sulphur dioxide","Daily mean","50 mg/m3 ",{"$f":"'SO2'!O19","v":7.43},{"$f":"'SO2'!N19","v":0.89166666666666672},{"$f":"'SO2'!O34","v":6.72},{"$f":"'SO2'!N34","v":1.1816666666666666}]
[null,"½ hourly mean","200 mg/m3 ",{"$f":"'SO2'!M19","v":99},{"$f":"'SO2'!L19","v":0.91666666666666663},{"$f":"'SO2'!M34","v":84},{"$f":"'SO2'!L34","v":1.25}]
["Carbon monoxide ","Daily mean","50 mg/m3 ",{"$f":"'CO 95% 10 min'!Q22","v":13.18},{"$f":"'CO 95% 10 min'!P22","v":1.6466666666666672},{"$f":"'CO 95% 10 min'!Q37","v":42.93},{"$f":"'CO 95% 10 min'!P37","v":3.43}]
[null,"95%ile 10-min avg *","150 mg/m3 *",{"$f":"'CO 95% 10 min'!M22","v":25},{"$f":"'CO 95% 10 min'!N22","v":1.5833333333333333},{"$f":"'CO 95% 10 min'!M37","v":30},{"$f":"'CO 95% 10 min'!N37","v":3.3333333333333335}]
[" Ammonia","Daily mean","No limit set until 03/12/23",{"$f":"'NH3'!O19","v":0.47},{"$f":"'NH3'!N19","v":2.2500000000000003E-2},{"$f":"'NH3'!O34","v":0.23},{"$f":"'NH3'!N34","v":1.4166666666666668E-2}]
[]
["Comments :"]

{"sheet":"NOx","index":15,"n_rows":48,"n_cols":17,"rows_kept":48,"cut":false,"hidden":false,"merged":[[21,9,33,9],[47,0,47,6],[48,0,51,6],[18,4,18,6],[3,16,7,18],[9,16,11,18],[12,16,15,18],[4,1,4,3],[4,4,4,6],[4,9,4,14],[6,9,18,9]]}
[{"$f":"+'Cover Page'!$B$29","v":"Annual Performance Report 2023"},null,null,null,{"$f":"+'Cover Page'!$B$33","v":"Ferrybridge 2"}]
[]
["Monitoring of Oxides of Nitrogen emissions",null,null,"Whole Installation",null,null,"See  Notes in Cell Q3",null,null,{"$f":"+A3","v":"Monitoring of Oxides of Nitrogen emissions"},null,null,null,"Per Combustion Line",null,null,"Notes:"]
[null,null,null,null,null,null,null,null,null,null,null,null,null,null,null,null,"User to add logic to complete Whole installation, Table A5:G18. From the data in Per Combustion Line, Table J6:O79, subject to No. of lines installed"]
["mg/Nm3","1/2 Hourly Reference Periods",null,null,"Daily Reference Periods"]
[{"$f":"+'Cover Page'!C39","v":2023},"1/2 hourly NOx ELV","Monthly 1/2 hourly mean","Highest 1/2 hourly maximum","Daily NOx ELV*","Monthly daily mean","Highest daily maximum",null,null,{"$f":"+A6","v":2023},"mg/Nm3","Monthly 1/2 hourly mean","Monthly 1/2 hourly maximum","Monthly daily mean","Monthly daily maximum"]
["Jan",400,{"$f":"AVERAGE(L7, L22)","v":169},{"$f":"MAX(M7,M22)","v":207},180,{"$f":"AVERAGE(N7,N22)","v":169.19},{"$f":"MAX(O7,O22)","v":170.76},null,null,"A1","Jan",170,198,170.04,170.76]
["Feb",400,{"$f":"AVERAGE(L8, L23)","v":167.5},{"$f":"MAX(M8,M23)","v":269},180,{"$f":"AVERAGE(N8,N23)","v":167.61},{"$f":"MAX(O8,O23)","v":171.31},null,null,null,"Feb",168,269,167.9,171.31]
["Mar",400,164,194,180,164.02500000000001,168.85,null,null,null,"Mar",165,188,165.09,168.85,null,"Whole Installation table A5:G18:"]
["Apr",400,166,202,180,166,170.95,null,null,null,"Apr",168,192,167.66,170.33,null,"Mean: for 1/2 hourly and daily periods calculate mean of values across all operational combustion lines for the month"]
["May",400,165,198,180,164.80500000000001,170.31,null,null,null,"May",167,196,166.79,169.25]
["Jun",400,166.5,194,180,166.20499999999998,169.8,null,null,null,"Jun",168,192,167.66,169.8]
["Jul",400,164.5,192,180,164.37,170.5,null,null,null,"Jul",167,188,166.86,170.5,null,"Maximum: for 1/2 hourly and daily periods use the highest value across all operational combustion lines for the month"]
["Aug",400,164.5,193,180,164.73000000000002,169.88,null,null,null,"Aug",167,190,167.18,169.88]
["Sep",400,161.5,204,180,161.75,170.26,null,null,null,"Sep",165,204,165.37,170.26]
["Oct",400,159,212,180,159.095,169.76,null,null,null,"Oct",162,212,162.28,169.76]
["Nov",400,158.5,223,180,158.76999999999998,162.19,null,null,null,"Nov",160,223,160.06,162.19]
["Dec",400,158.5,202,180,158.36000000000001,162.16999999999999,null,null,null,"Dec",160,202,159.94,162.1]
[null,null,null,null,"* ELV reduced to 180 mg/Nm3 on 3 December 2023",null,null,null,null,null,"Annual",{"$f":"AVERAGE(L7:L18)","v":165.58333333333334},{"$f":"MAX(M7:M18)","v":269},{"$f":"AVERAGE(N7:N18)","v":165.56916666666669},{"$f":"MAX(O7:O18)","v":171.31}]
[]
[null,null,null,null,null,null,null,null,null,{"$f":"+A6","v":2023},"mg/Nm3","Monthly 1/2 hourly mean","Monthly 1/2 hourly maximum","Monthly daily mean","Monthly daily maximum"]
[null,null,null,null,null,null,null,null,null,"A2","Jan",168,207,168.34,170.32]
[null,null,null,null,null,null,null,null,null,null,"Feb",167,197,167.32,170.46]
[null,null,null,null,null,null,null,null,null,null,"Mar",163,194,162.96,168.52]
[null,null,null,null,null,null,null,null,null,null,"Apr",164,202,164.34,170.95]
[null,null,null,null,null,null,null,null,null,null,"May",163,198,162.82,170.31]
[null,null,null,null,null,null,null,null,null,null,"Jun",165,194,164.75,169.55]
[null,null,null,null,null,null,null,null,null,null,"Jul",162,192,161.88,167.78]
[null,null,null,null,null,null,null,null,null,null,"Aug",162,193,162.28,168.16]
[null,null,null,null,null,null,null,null,null,null,"Sep",158,203,158.13,169.64]
[null,null,null,null,null,null,null,null,null,null,"Oct",156,196,155.91,169.09]
[null,null,null,null,null,null,null,null,null,null,"Nov",157,194,157.47999999999999,161.27000000000001]
[null,null,null,null,null,null,null,null,null,null,"Dec",157,186,156.78,162.16999999999999]
[null,null,null,null,null,null,null,null,null,null,"Annual",{"$f":"AVERAGE(L22:L33)","v":161.83333333333334},{"$f":"MAX(M22:M33)","v":207},{"$f":"AVERAGE(N22:N33)","v":161.91583333333332},{"$f":"MAX(O22:O33)","v":170.95}]
[]
[]
[]
[]
[]
[]
[]
[]
[]
[]
[]
[]
[]
["Comments :"]

{"sheet":"SO2","index":16,"n_rows":48,"n_cols":17,"rows_kept":48,"cut":false,"hidden":false,"merged":[[21,9,33,9],[47,0,47,6],[48,0,51,6],[18,4,18,6],[3,16,7,18],[9,16,11,18],[12,16,15,18],[4,1,4,3],[4,4,4,6],[4,9,4,14],[6,9,18,9]]}
[{"$f":"+'Cover Page'!$B$29","v":"Annual Performance Report 2023"},null,null,null,{"$f":"+'Cover Page'!$B$33","v":"Ferrybridge 2"}]
[]
["Monitoring of Sulphur dioxide emissions",null,null,"Whole Installation",null,null,"See  Notes in Cell Q3",null,null,{"$f":"+A3","v":"Monitoring of Sulphur dioxide emissions"},null,null,null,"Per Combustion Line",null,null,"Notes:"]
[null,null,null,null,null,null,null,null,null,null,null,null,null,null,null,null,"User to add logic to complete Whole installation, Table A5:G18. From the data in Per Combustion Line, Table J6:O79, subject to No. of lines installed"]
["mg/Nm3","1/2 Hourly Reference Periods",null,null,"Daily Reference Periods"]
[{"$f":"+'Cover Page'!C39","v":2023},"1/2 hourly SO2 ELV","Monthly 1/2 hourly mean","Highest 1/2 hourly maximum","Daily SO2 ELV*","Monthly daily mean","Highest daily maximum",null,null,{"$f":"+A6","v":2023},"mg/Nm3","Monthly 1/2 hourly mean","Monthly 1/2 hourly maximum","Monthly daily mean","Monthly daily maximum"]
["Jan",200,{"$f":"AVERAGE(L7, L22)","v":1},{"$f":"MAX(M7,M22)","v":9},50,{"$f":"AVERAGE(N7,N22)","v":0.95500000000000007},{"$f":"MAX(O7,O22)","v":2.0299999999999998},null,null,"A1","Jan",1,7,1.08,1.74]
["Feb",200,{"$f":"AVERAGE(L8, L23)","v":1},{"$f":"MAX(M8,M23)","v":99},50,{"$f":"AVERAGE(N8,N23)","v":1.0549999999999999},{"$f":"MAX(O8,O23)","v":7.43},null,null,null,"Feb",1,99,0.87,7.43]
["Mar",200,1.5,12,50,1.355,2.19,null,null,null,"Mar",1,12,1.06,1.47,null,"Whole Installation table A5:G18:"]
["Apr",200,1,9,50,1.02,2.33,null,null,null,"Apr",1,8,0.94,1.47,null,"Mean: for 1/2 hourly and daily periods calculate mean of values across all operational combustion lines for the month"]
["May",200,1,11,50,0.78,2.1,null,null,null,"May",1,10,0.86,1.1000000000000001]
["Jun",200,1,84,50,0.72,4.97,null,null,null,"Jun",1,12,0.78,1.2]
["Jul",200,1,28,50,0.83499999999999996,1.66,null,null,null,"Jul",1,14,1.01,1.66,null,"Maximum: for 1/2 hourly and daily periods use the highest value across all operational combustion lines for the month"]
["Aug",200,1,34,50,0.83000000000000007,1.6,null,null,null,"Aug",1,34,1.05,1.6]
["Sep",200,1,36,50,1.1850000000000001,3.28,null,null,null,"Sep",1,36,0.91,3.28]
["Oct",200,1,44,50,1.095,4.28,null,null,null,"Oct",1,19,0.75,1.7]
["Nov",200,1.5,36,50,1.345,6.72,null,null,null,"Nov",1,36,0.97,1.69]
["Dec",200,1,14,50,1.2649999999999999,4.58,null,null,null,"Dec",0,14,0.42,1]
[null,null,null,null,"* ELV reduced to 40 mg/Nm3 on 3 December 2023",null,null,null,null,null,"Annual",{"$f":"AVERAGE(L7:L18)","v":0.91666666666666663},{"$f":"MAX(M7:M18)","v":99},{"$f":"AVERAGE(N7:N18)","v":0.89166666666666672},{"$f":"MAX(O7:O18)","v":7.43}]
[]
[null,null,null,null,null,null,null,null,null,{"$f":"+A6","v":2023},"mg/Nm3","Monthly 1/2 hourly mean","Monthly 1/2 hourly maximum","Monthly daily mean","Monthly daily maximum"]
[null,null,null,null,null,null,null,null,null,"A2","Jan",1,9,0.83,2.0299999999999998]
[null,null,null,null,null,null,null,null,null,null,"Feb",1,27,1.24,2.73]
[null,null,null,null,null,null,null,null,null,null,"Mar",2,9,1.65,2.19]
[null,null,null,null,null,null,null,null,null,null,"Apr",1,9,1.1000000000000001,2.33]
[null,null,null,null,null,null,null,null,null,null,"May",1,11,0.7,2.1]
[null,null,null,null,null,null,null,null,null,null,"Jun",1,84,0.66,4.97]
[null,null,null,null,null,null,null,null,null,null,"Jul",1,28,0.66,1.37]
[null,null,null,null,null,null,null,null,null,null,"Aug",1,12,0.61,1.36]
[null,null,null,null,null,null,null,null,null,null,"Sep",1,22,1.46,2.69]
[null,null,null,null,null,null,null,null,null,null,"Oct",1,44,1.44,4.28]
[null,null,null,null,null,null,null,null,null,null,"Nov",2,28,1.72,6.72]
[null,null,null,null,null,null,null,null,null,null,"Dec",2,11,2.11,4.58]
[null,null,null,null,null,null,null,null,null,null,"Annual",{"$f":"AVERAGE(L22:L33)","v":1.25},{"$f":"MAX(M22:M33)","v":84},{"$f":"AVERAGE(N22:N33)","v":1.1816666666666666},{"$f":"MAX(O22:O33)","v":6.72}]
[]
[]
[]
[]
[]
[]
[]
[]
[]
[]
[]
[]
[]
["Comments :"]

{"sheet":"HCl","index":17,"n_rows":48,"n_cols":17,"rows_kept":48,"cut":false,"hidden":false,"merged":[[12,16,15,18],[4,9,4,14],[4,1,4,3],[4,4,4,6],[48,0,51,6],[47,0,47,6],[6,9,18,9],[21,9,33,9],[3,16,7,18],[9,16,11,18],[18,4,18,6]]}
[{"$f":"+'Cover Page'!$B$29","v":"Annual Performance Report 2023"},null,null,null,{"$f":"+'Cover Page'!$B$33","v":"Ferrybridge 2"}]
[]
["Monitoring of Hydrogen Chloride emissions",null,null,"Whole Installation",null,null,"See  Notes in Cell Q3",null,null,{"$f":"+A3","v":"Monitoring of Hydrogen Chloride emissions"},null,null,null,"Per Combustion Line",null,null,"Notes:"]
[null,null,null,null,null,null,null,null,null,null,null,null,null,null,null,null,"User to add logic to complete Whole installation, Table A5:G18. From the data in Per Combustion Line, Table J6:O79, subject to No. of lines installed"]
["mg/Nm3","1/2 Hourly Reference Periods",null,null,"Daily Reference Periods"]
[{"$f":"+'Cover Page'!C39","v":2023},"1/2 hourly HCl ELV","Monthly 1/2 hourly mean","Highest 1/2 hourly maximum","Daily HCl ELV*","Monthly daily mean","Highest daily maximum",null,null,{"$f":"+A6","v":2023},"mg/Nm3","Monthly 1/2 hourly mean","Monthly 1/2 hourly maximum","Monthly daily mean","Monthly daily maximum"]
["Jan",60,{"$f":"AVERAGE(L7, L22)","v":5.5},{"$f":"MAX(M7,M22)","v":13},10,{"$f":"AVERAGE(N7,N22)","v":5.6300000000000008},{"$f":"MAX(O7,O22)","v":7.36},null,null,"A1","Jan",5,13,5.4,6.64]
["Feb",60,{"$f":"AVERAGE(L8, L23)","v":5.5},{"$f":"MAX(M8,M23)","v":13},10,{"$f":"AVERAGE(N8,N23)","v":5.7649999999999997},{"$f":"MAX(O8,O23)","v":8.17},null,null,null,"Feb",5,10,5.39,7.4]
["Mar",60,5,12,10,5.2949999999999999,7.51,null,null,null,"Mar",5,12,5.36,6.83,null,"Whole Installation table A5:G18:"]
["Apr",60,5,14,10,5.2450000000000001,7.37,null,null,null,"Apr",5,11,5.2,6.15,null,"Mean: for 1/2 hourly and daily periods calculate mean of values across all operational combustion lines for the month"]
["May",60,5.5,15,10,5.8,7.83,null,null,null,"May",5,13,5.39,6.64]
["Jun",60,5.5,32,10,5.7350000000000003,7.98,null,null,null,"Jun",5,11,5.07,6.2]
["Jul",60,6,12,10,5.8949999999999996,8.39,null,null,null,"Jul",5,10,4.8499999999999996,5.66,null,"Maximum: for 1/2 hourly and daily periods use the highest value across all operational combustion lines for the month"]
["Aug",60,6.5,20,10,6.52,8.25,null,null,null,"Aug",6,20,6.02,7.47]
["Sep",60,7,15,10,7.1950000000000003,8.68,null,null,null,"Sep",7,13,7.12,8.64]
["Oct",60,6.5,39,10,6.6050000000000004,8.9600000000000009,null,null,null,"Oct",6,16,5.87,7.46]
["Nov",60,6.5,17,10,6.4450000000000003,7.77,null,null,null,"Nov",6,17,6.23,7.39]
["Dec",60,6.5,22,10,6.625,7.62,null,null,null,"Dec",6,22,6.48,7.45]
[null,null,null,null,"* ELV reduced to 8 mg/Nm3 on 3 December 2023",null,null,null,null,null,"Annual",{"$f":"AVERAGE(L7:L18)","v":5.5},{"$f":"MAX(M7:M18)","v":22},{"$f":"AVERAGE(N7:N18)","v":5.6983333333333333},{"$f":"MAX(O7:O18)","v":8.64}]
[]
[null,null,null,null,null,null,null,null,null,{"$f":"+A6","v":2023},"mg/Nm3","Monthly 1/2 hourly mean","Monthly 1/2 hourly maximum","Monthly daily mean","Monthly daily maximum"]
[null,null,null,null,null,null,null,null,null,"A2","Jan",6,11,5.86,7.36]
[null,null,null,null,null,null,null,null,null,null,"Feb",6,13,6.14,8.17]
[null,null,null,null,null,null,null,null,null,null,"Mar",5,11,5.23,7.51]
[null,null,null,null,null,null,null,null,null,null,"Apr",5,14,5.29,7.37]
[null,null,null,null,null,null,null,null,null,null,"May",6,15,6.21,7.83]
[null,null,null,null,null,null,null,null,null,null,"Jun",6,32,6.4,7.98]
[null,null,null,null,null,null,null,null,null,null,"Jul",7,12,6.94,8.39]
[null,null,null,null,null,null,null,null,null,null,"Aug",7,16,7.02,8.25]
[null,null,null,null,null,null,null,null,null,null,"Sep",7,15,7.27,8.68]
[null,null,null,null,null,null,null,null,null,null,"Oct",7,39,7.34,8.9600000000000009]
[null,null,null,null,null,null,null,null,null,null,"Nov",7,17,6.66,7.77]
[null,null,null,null,null,null,null,null,null,null,"Dec",7,21,6.77,7.62]
[null,null,null,null,null,null,null,null,null,null,"Annual",{"$f":"AVERAGE(L22:L33)","v":6.333333333333333},{"$f":"MAX(M22:M33)","v":39},{"$f":"AVERAGE(N22:N33)","v":6.4274999999999993},{"$f":"MAX(O22:O33)","v":8.9600000000000009}]
[]
[]
[]
[]
[]
[]
[]
[]
[]
[]
[]
[]
[]
["Comments :"]

{"sheet":"TOC","index":18,"n_rows":48,"n_cols":17,"rows_kept":48,"cut":false,"hidden":false,"merged":[[21,9,33,9],[47,0,47,6],[48,0,51,6],[3,16,7,18],[9,16,11,18],[12,16,15,18],[4,1,4,3],[4,4,4,6],[4,9,4,14],[6,9,18,9]]}
[{"$f":"+'Cover Page'!$B$29","v":"Annual Performance Report 2023"},null,null,null,{"$f":"+'Cover Page'!$B$33","v":"Ferrybridge 2"}]
[]
["Monitoring of Total organic carbon emissions",null,null,"Whole Installation",null,null,"See  Notes in Cell Q3",null,null,{"$f":"+A3","v":"Monitoring of Total organic carbon emissions"},null,null,null,"Per Combustion Line",null,null,"Notes:"]
[null,null,null,null,null,null,null,null,null,null,null,null,null,null,null,null,"User to add logic to complete Whole installation, Table A5:G18. From the data in Per Combustion Line, Table J6:O79, subject to No. of lines installed"]
["mg/Nm3","1/2 Hourly Reference Periods",null,null,"Daily Reference Periods"]
[{"$f":"+'Cover Page'!C39","v":2023},"1/2 hourly TOC ELV","Monthly 1/2 hourly mean","Highest 1/2 hourly maximum","Daily TOC ELV","Monthly daily mean","Highest daily maximum",null,null,{"$f":"+A6","v":2023},"mg/Nm3","Monthly 1/2 hourly mean","Monthly 1/2 hourly maximum","Monthly daily mean","Monthly daily maximum"]
["Jan",20,{"$f":"AVERAGE(L7, L22)","v":0.5},{"$f":"MAX(M7,M22)","v":2},10,{"$f":"AVERAGE(N7,N22)","v":0.51500000000000001},{"$f":"MAX(O7,O22)","v":1.57},null,null,"A1","Jan",1,2,0.65,1.57]
["Feb",20,{"$f":"AVERAGE(L8, L23)","v":0.5},{"$f":"MAX(M8,M23)","v":13},10,{"$f":"AVERAGE(N8,N23)","v":0.66},{"$f":"MAX(O8,O23)","v":1.1599999999999999},null,null,null,"Feb",1,1,0.92,1.1599999999999999]
["Mar",20,0.5,6,10,0.59000000000000008,0.99,null,null,null,"Mar",1,3,0.79,0.99,null,"Whole Installation table A5:G18:"]
["Apr",20,0,6,10,0.32500000000000001,0.62,null,null,null,"Apr",0,2,0.23,0.47,null,"Mean: for 1/2 hourly and daily periods calculate mean of values across all operational combustion lines for the month"]
["May",20,0,6,10,0.36,0.78,null,null,null,"May",0,6,0.24,0.62]
["Jun",20,0,3,10,0.34499999999999997,0.54,null,null,null,"Jun",0,2,0.22,0.28999999999999998]
["Jul",20,0,18,10,0.36,0.8,null,null,null,"Jul",0,2,0.24,0.5,null,"Maximum: for 1/2 hourly and daily periods use the highest value across all operational combustion lines for the month"]
["Aug",20,0,3,10,0.38500000000000001,0.91,null,null,null,"Aug",0,2,0.27,0.91]
["Sep",20,0.5,3,10,0.38,0.84,null,null,null,"Sep",0,3,0.24,0.44]
["Oct",20,0,18,10,0.38500000000000001,0.87,null,null,null,"Oct",0,3,0.3,0.87]
["Nov",20,0.5,3,10,0.56499999999999995,0.95,null,null,null,"Nov",1,3,0.73,0.95]
["Dec",20,0.5,10,10,0.51500000000000001,0.85,null,null,null,"Dec",1,10,0.62,0.85]
[null,null,null,null,null,null,null,null,null,null,"Annual",{"$f":"AVERAGE(L7:L18)","v":0.41666666666666669},{"$f":"MAX(M7:M18)","v":10},{"$f":"AVERAGE(N7:N18)","v":0.45416666666666666},{"$f":"MAX(O7:O18)","v":1.57}]
[]
[null,null,null,null,null,null,null,null,null,{"$f":"+A6","v":2023},"mg/Nm3","Monthly 1/2 hourly mean","Monthly 1/2 hourly maximum","Monthly daily mean","Monthly daily maximum"]
[null,null,null,null,null,null,null,null,null,"A2","Jan",0,1,0.38,0.48]
[null,null,null,null,null,null,null,null,null,null,"Feb",0,13,0.4,0.64]
[null,null,null,null,null,null,null,null,null,null,"Mar",0,6,0.39,0.54]
[null,null,null,null,null,null,null,null,null,null,"Apr",0,6,0.42,0.62]
[null,null,null,null,null,null,null,null,null,null,"May",0,6,0.48,0.78]
[null,null,null,null,null,null,null,null,null,null,"Jun",0,3,0.47,0.54]
[null,null,null,null,null,null,null,null,null,null,"Jul",0,18,0.48,0.8]
[null,null,null,null,null,null,null,null,null,null,"Aug",0,3,0.5,0.56000000000000005]
[null,null,null,null,null,null,null,null,null,null,"Sep",1,2,0.52,0.84]
[null,null,null,null,null,null,null,null,null,null,"Oct",0,18,0.47,0.86]
[null,null,null,null,null,null,null,null,null,null,"Nov",0,3,0.4,0.55000000000000004]
[null,null,null,null,null,null,null,null,null,null,"Dec",0,4,0.41,0.67]
[null,null,null,null,null,null,null,null,null,null,"Annual",{"$f":"AVERAGE(L22:L33)","v":8.3333333333333329E-2},{"$f":"MAX(M22:M33)","v":18},{"$f":"AVERAGE(N22:N33)","v":0.44333333333333336},{"$f":"MAX(O22:O33)","v":0.86}]
[]
[]
[]
[]
[]
[]
[]
[]
[]
[]
[]
[]
[]
["Comments :"]

{"sheet":"Particulates","index":19,"n_rows":48,"n_cols":17,"rows_kept":48,"cut":false,"hidden":false,"merged":[[21,9,33,9],[47,0,47,6],[48,0,51,6],[18,4,18,6],[3,16,7,18],[9,16,11,18],[12,16,15,18],[4,1,4,3],[4,4,4,6],[4,9,4,14],[6,9,18,9]]}
[{"$f":"+'Cover Page'!$B$29","v":"Annual Performance Report 2023"},null,null,null,{"$f":"+'Cover Page'!$B$33","v":"Ferrybridge 2"}]
[]
["Monitoring of Particulate matter emissions",null,null,"Whole Installation",null,null,"See  Notes in Cell Q3",null,null,{"$f":"+A3","v":"Monitoring of Particulate matter emissions"},null,null,null,"Per Combustion Line",null,null,"Notes:"]
[null,null,null,null,null,null,null,null,null,null,null,null,null,null,null,null,"User to add logic to complete Whole installation, Table A5:G18. From the data in Per Combustion Line, Table J6:O79, subject to No. of lines installed"]
["mg/Nm3","1/2 Hourly Reference Periods",null,null,"Daily Reference Periods"]
[{"$f":"+'Cover Page'!C39","v":2023},"1/2 hourly PM ELV","Monthly 1/2 hourly mean","Highest 1/2 hourly maximum","Daily PM ELV*","Monthly daily mean","Highest daily maximum",null,null,{"$f":"+A6","v":2023},"mg/Nm3","Monthly 1/2 hourly mean","Monthly 1/2 hourly maximum","Monthly daily mean","Monthly daily maximum"]
["Jan",30,{"$f":"AVERAGE(L7, L22)","v":1.5},{"$f":"MAX(M7,M22)","v":7},10,{"$f":"AVERAGE(N7,N22)","v":1.44},{"$f":"MAX(O7,O22)","v":4.8},null,null,"A1","Jan",1,3,1.03,2.0699999999999998]
["Feb",30,{"$f":"AVERAGE(L8, L23)","v":2.5},{"$f":"MAX(M8,M23)","v":7},10,{"$f":"AVERAGE(N8,N23)","v":2.605},{"$f":"MAX(O8,O23)","v":5.45},null,null,null,"Feb",2,6,2.4,3.74]
["Mar",30,2.5,39,10,2.33,7.46,null,null,null,"Mar",2,5,2.15,2.79,null,"Whole Installation table A5:G18:"]
["Apr",30,2,10,10,1.97,3.36,null,null,null,"Apr",2,7,1.92,3.36,null,"Mean: for 1/2 hourly and daily periods calculate mean of values across all operational combustion lines for the month"]
["May",30,0.5,3,10,0.59499999999999997,1.1299999999999999,null,null,null,"May",1,3,0.87,1.1299999999999999]
["Jun",30,0.5,48,10,0.63,1.39,null,null,null,"Jun",1,2,0.84,1.1299999999999999]
["Jul",30,1,3,10,0.99500000000000011,2.52,null,null,null,"Jul",1,2,1.0900000000000001,1.26,null,"Maximum: for 1/2 hourly and daily periods use the highest value across all operational combustion lines for the month"]
["Aug",30,1.5,5,10,1.8050000000000002,3.55,null,null,null,"Aug",1,4,1.1200000000000001,2.0699999999999998]
["Sep",30,1.5,41,10,1.69,4.49,null,null,null,"Sep",1,41,1.23,4.49]
["Oct",30,2,6,10,1.9450000000000001,3.65,null,null,null,"Oct",2,6,1.83,3.65]
["Nov",30,2,10,10,1.7799999999999998,2.98,null,null,null,"Nov",2,10,1.63,2.19]
["Dec",30,2,15,10,1.9950000000000001,3.92,null,null,null,"Dec",2,15,2.12,3.92]
[null,null,null,null,"* ELV reduced to 5 mg/Nm3 on 3 December 2023",null,null,null,null,null,"Annual",{"$f":"AVERAGE(L7:L18)","v":1.5},{"$f":"MAX(M7:M18)","v":41},{"$f":"AVERAGE(N7:N18)","v":1.5191666666666668},{"$f":"MAX(O7:O18)","v":4.49}]
[]
[null,null,null,null,null,null,null,null,null,{"$f":"+A6","v":2023},"mg/Nm3","Monthly 1/2 hourly mean","Monthly 1/2 hourly maximum","Monthly daily mean","Monthly daily maximum"]
[null,null,null,null,null,null,null,null,null,"A2","Jan",2,7,1.85,4.8]
[null,null,null,null,null,null,null,null,null,null,"Feb",3,7,2.81,5.45]
[null,null,null,null,null,null,null,null,null,null,"Mar",3,39,2.5099999999999998,7.46]
[null,null,null,null,null,null,null,null,null,null,"Apr",2,10,2.02,3.15]
[null,null,null,null,null,null,null,null,null,null,"May",0,1,0.32,0.63]
[null,null,null,null,null,null,null,null,null,null,"Jun",0,48,0.42,1.39]
[null,null,null,null,null,null,null,null,null,null,"Jul",1,3,0.9,2.52]
[null,null,null,null,null,null,null,null,null,null,"Aug",2,5,2.4900000000000002,3.55]
[null,null,null,null,null,null,null,null,null,null,"Sep",2,30,2.15,4]
[null,null,null,null,null,null,null,null,null,null,"Oct",2,4,2.06,2.56]
[null,null,null,null,null,null,null,null,null,null,"Nov",2,7,1.93,2.98]
[null,null,null,null,null,null,null,null,null,null,"Dec",2,4,1.87,2.41]
[null,null,null,null,null,null,null,null,null,null,"Annual",{"$f":"AVERAGE(L22:L33)","v":1.75},{"$f":"MAX(M22:M33)","v":48},{"$f":"AVERAGE(N22:N33)","v":1.7775000000000001},{"$f":"MAX(O22:O33)","v":7.46}]
[]
[]
[]
[]
[]
[]
[]
[]
[]
[]
[]
[]
[]
["Comments :"]

{"sheet":"NH3","index":20,"n_rows":49,"n_cols":17,"rows_kept":49,"cut":false,"hidden":false,"merged":[[21,9,33,9],[47,0,47,6],[48,0,51,6],[18,4,18,6],[3,16,7,18],[9,16,11,18],[12,16,15,18],[4,1,4,3],[4,4,4,6],[4,9,4,14],[6,9,18,9]]}
[{"$f":"+'Cover Page'!$B$29","v":"Annual Performance Report 2023"},null,null,null,{"$f":"+'Cover Page'!$B$33","v":"Ferrybridge 2"}]
[]
["Monitoring of Ammnonia emissions ",null,null,"Whole Installation",null,null,"See  Notes in Cell Q3",null,null,{"$f":"+A3","v":"Monitoring of Ammnonia emissions "},null,null,null,"Per Combustion Line",null,null,"Notes:"]
[null,null,null,null,null,null,null,null,null,null,null,null,null,null,null,null,"User to add logic to complete Whole installation, Table A5:G18. From the data in Per Combustion Line, Table J6:O79, subject to No. of lines installed"]
["mg/Nm3","1/2 Hourly Reference Periods",null,null,"Daily Reference Periods"]
[{"$f":"+'Cover Page'!C39","v":2023},"1/2 hourly NH3 ELV","Monthly 1/2 hourly mean","Highest 1/2 hourly maximum","Daily NH3 ELV*","Monthly daily mean","Highest daily maximum",null,null,{"$f":"+A6","v":2023},"mg/Nm3","Monthly 1/2 hourly mean","Monthly 1/2 hourly maximum","Monthly daily mean","Monthly daily maximum"]
["Jan",30,{"$f":"AVERAGE(L7, L22)","v":0},{"$f":"MAX(M7,M22)","v":0},"None",{"$f":"AVERAGE(N7,N22)","v":9.5000000000000001E-2},{"$f":"MAX(O7,O22)","v":0.3},null,null,"A1","Jan",0,0,0.15,0.3]
["Feb",{"$f":"+B7","v":30},{"$f":"AVERAGE(L8, L23)","v":0},{"$f":"MAX(M8,M23)","v":1},"None",{"$f":"AVERAGE(N8,N23)","v":3.4999999999999996E-2},{"$f":"MAX(O8,O23)","v":0.19},null,null,null,"Feb",0,1,0.01,0.19]
["Mar",{"$f":"+B8","v":30},0,0,"None",5.0000000000000001E-3,0.15,null,null,null,"Mar",0,0,0,0.06,null,"Whole Installation table A5:G18:"]
["Apr",30,0,1,"None",5.0000000000000001E-3,7.0000000000000007E-2,null,null,null,"Apr",0,0,0,0.02,null,"Mean: for 1/2 hourly and daily periods calculate mean of values across all operational combustion lines for the month"]
["May",30,0,0,"None",5.0000000000000001E-3,7.0000000000000007E-2,null,null,null,"May",0,0,0,0.03]
["Jun",30,0,0,"None",0,0.03,null,null,null,"Jun",0,0,0,0.03]
["Jul",30,0,1,"None",0,0.02,null,null,null,"Jul",0,0,0,0.02,null,"Maximum: for 1/2 hourly and daily periods use the highest value across all operational combustion lines for the month"]
["Aug",30,0,1,"None",0,0.06,null,null,null,"Aug",0,0,0,0.06]
["Sep",30,0,1,"None",1.4999999999999999E-2,0.42,null,null,null,"Sep",0,1,0.02,0.42]
["Oct",30,0,1,"None",5.0000000000000001E-3,7.0000000000000007E-2,null,null,null,"Oct",0,0,0.01,7.0000000000000007E-2]
["Nov",30,0,1,"None",0.01,0.05,null,null,null,"Nov",0,0,0.01,0.05]
["Dec",30,0,1,15,4.5000000000000005E-2,0.47,null,null,null,"Dec",0,0,7.0000000000000007E-2,0.47]
[null,null,null,null,"* ELV came into force on 3 December 2023",null,null,null,null,null,"Annual",{"$f":"AVERAGE(L7:L18)","v":0},{"$f":"MAX(M7:M18)","v":1},{"$f":"AVERAGE(N7:N18)","v":2.2500000000000003E-2},{"$f":"MAX(O7:O18)","v":0.47}]
[]
[null,null,null,null,null,null,null,null,null,{"$f":"+A6","v":2023},"mg/Nm3","Monthly 1/2 hourly mean","Monthly 1/2 hourly maximum","Monthly daily mean","Monthly daily maximum"]
[null,null,null,null,null,null,null,null,null,"A2","Jan",0,0,0.04,0.23]
[null,null,null,null,null,null,null,null,null,null,"Feb",0,1,0.06,0.17]
[null,null,null,null,null,null,null,null,null,null,"Mar",0,0,0.01,0.15]
[null,null,null,null,null,null,null,null,null,null,"Apr",0,1,0.01,7.0000000000000007E-2]
[null,null,null,null,null,null,null,null,null,null,"May",0,0,0.01,7.0000000000000007E-2]
[null,null,null,null,null,null,null,null,null,null,"Jun",0,0,0,0.01]
[null,null,null,null,null,null,null,null,null,null,"Jul",0,1,0,0.02]
[null,null,null,null,null,null,null,null,null,null,"Aug",0,1,0,0.04]
[null,null,null,null,null,null,null,null,null,null,"Sep",0,1,0.01,0.06]
[null,null,null,null,null,null,null,null,null,null,"Oct",0,1,0,0.02]
[null,null,null,null,null,null,null,null,null,null,"Nov",0,1,0.01,0.03]
[null,null,null,null,null,null,null,null,null,null,"Dec",0,1,0.02,0.19]
[null,null,null,null,null,null,null,null,null,null,"Annual",{"$f":"AVERAGE(L22:L33)","v":0},{"$f":"MAX(M22:M33)","v":1},{"$f":"AVERAGE(N22:N33)","v":1.4166666666666668E-2},{"$f":"MAX(O22:O33)","v":0.23}]
[]
[]
[]
[]
[]
[]
[]
[]
[]
[]
[]
[]
[]
["Comments :"]
["An indicated ELV value of zero in the table above means that no ammonia limit is/was set in the permit.  "]

{"sheet":"CO 95% 10 min","index":21,"n_rows":52,"n_cols":19,"rows_kept":52,"cut":false,"hidden":false,"merged":[[24,10,36,10],[50,0,50,7],[51,0,54,7],[4,0,5,7],[6,18,10,20],[12,18,14,20],[15,18,18,20],[7,1,7,4],[7,5,7,7],[7,10,7,16],[9,10,21,10]]}
[{"$f":"+'Cover Page'!$B$29","v":"Annual Performance Report 2023"},null,null,null,{"$f":"+'Cover Page'!$B$33","v":"Ferrybridge 2"}]
[]
["Monitoring of Carbon Monoxide (10-minute avg)",null,null,null,"Whole Installation",null,null,"See  Notes in Cell S3",null,{"$f":"+A3","v":"Monitoring of Carbon Monoxide (10-minute avg)"},null,null,null,null,"Per Combustion Line",null,"Notes:",null,"Notes:"]
[]
["Please complete this tab for your plant if you have 10-minute average CO ELVs; otherwise, leave it blank and complete the CO 0.5 hourly tab"]
[]
[null,null,null,null,null,null,null,null,null,null,null,null,null,null,null,null,null,null,"User to add logic to complete Whole installation, Table A5:H18. From the data in Per Combustion Line, Table K6:Q79, subject to No. of lines installed"]
["mg/Nm3","10-minute Reference Periods",null,null,null,"Daily Reference Periods"]
[{"$f":"+'Cover Page'!C39","v":2023},"95%ile 10-min avg CO ELV","95%ile 10-min avg maximum","Monthly CO 10-min avg mean","10-min avg maximum","Daily CO ELV","Monthly daily mean","Highest daily maximum",null,null,{"$f":"+A9","v":2023},"mg/Nm3","95%ile 10-min avg maximum","Monthly CO 10-min avg mean","10-min avg maximum","Monthly daily mean","Monthly daily maximum"]
["Jan",150,{"$f":"MAX(M10,M25)","v":8},{"$f":"AVERAGE(N10,N25)","v":3},{"$f":"MAX(O10,O25)","v":159},50,{"$f":"AVERAGE(P10,P25)","v":2.7650000000000001},{"$f":"MAX(Q10,Q25)","v":5.14},null,null,"A1","Jan",8,3,159,2.89,5.14]
["Feb",{"$f":"+B10","v":150},{"$f":"MAX(M11,M26)","v":8},{"$f":"AVERAGE(N11,N26)","v":3},{"$f":"MAX(O11,O26)","v":4483},{"$f":"+F10","v":50},{"$f":"AVERAGE(P11,P26)","v":3.0249999999999999},{"$f":"MAX(Q11,Q26)","v":35.479999999999997},null,null,null,"Feb",6,1,162,0.87,2.4900000000000002]
["Mar",{"$f":"+B11","v":150},20,2,2180,{"$f":"+F11","v":50},2.5,18.29,null,null,null,"Mar",6,1,241,1.45,7.49,null,"Whole Installation table A5:H18:"]
["Apr",150,7,2,1859,50,1.9449999999999998,14.77,null,null,null,"Apr",5,1,203,1.03,2.2000000000000002,null,"Mean: for 10-min and daily periods use average of all operational combustion lines."]
["May",150,8,2,2170,50,1.7399999999999998,17.2,null,null,null,"May",6,1,333,0.97,3.23]
["Jun",150,8,1.5,247,50,1.97,5.73,null,null,null,"Jun",8,1,225,1.5,2.61]
["Jul",150,14,2.5,6906,50,2.835,42.93,null,null,null,"Jul",13,1,162,1.34,3.79,null,"Maximum: for 10-min and daily periods use the highest of all operational combustion lines in any month."]
["Aug",150,9,2,243,50,1.9550000000000001,4.3099999999999996,null,null,null,"Aug",6,1,211,1.34,3.74]
["Sep",150,28,2.5,223,50,2.4350000000000001,8.24,null,null,null,"Sep",25,2,112,1.73,7.12]
["Oct",150,30,3.5,4113,50,3.2450000000000001,26.81,null,null,null,"Oct",15,2,443,1.81,6.24]
["Nov",150,17,2.5,465,50,2.9249999999999998,17.440000000000001,null,null,null,"Nov",17,2,393,2.09,5.23]
["Dec",150,19,3,1334,50,3.12,13.18,null,null,null,"Dec",14,3,903,2.74,13.18]
[null,null,null,null,null,null,null,null,null,null,null,"Annual",{"$f":"MAX(M10:M21)","v":25},{"$f":"AVERAGE(N10:N21)","v":1.5833333333333333},{"$f":"MAX(O10:O21)","v":903},{"$f":"AVERAGE(P10:P21)","v":1.6466666666666672},{"$f":"MAX(Q10:Q21)","v":13.18}]
[]
[null,null,null,null,null,null,null,null,null,null,{"$f":"+A9","v":2023},"mg/Nm3","95%ile 10-min avg maximum","Monthly CO 10-min avg mean","10-min avg maximum","Monthly daily mean","Monthly daily maximum"]
[null,null,null,null,null,null,null,null,null,null,"A2","Jan",7,3,131,2.64,5.09]
[null,null,null,null,null,null,null,null,null,null,null,"Feb",8,5,4483,5.18,35.479999999999997]
[null,null,null,null,null,null,null,null,null,null,null,"Mar",20,3,2180,3.55,18.29]
[null,null,null,null,null,null,null,null,null,null,null,"Apr",7,3,1859,2.86,14.77]
[null,null,null,null,null,null,null,null,null,null,null,"May",8,3,2170,2.5099999999999998,17.2]
[null,null,null,null,null,null,null,null,null,null,null,"Jun",6,2,247,2.44,5.73]
[null,null,null,null,null,null,null,null,null,null,null,"Jul",14,4,6906,4.33,42.93]
[null,null,null,null,null,null,null,null,null,null,null,"Aug",9,3,243,2.57,4.3099999999999996]
[null,null,null,null,null,null,null,null,null,null,null,"Sep",28,3,223,3.14,8.24]
[null,null,null,null,null,null,null,null,null,null,null,"Oct",30,5,4113,4.68,26.81]
[null,null,null,null,null,null,null,null,null,null,null,"Nov",14,3,465,3.76,17.440000000000001]
[null,null,null,null,null,null,null,null,null,null,null,"Dec",19,3,1334,3.5,12.61]
[null,null,null,null,null,null,null,null,null,null,null,"Annual",{"$f":"MAX(M25:M36)","v":30},{"$f":"AVERAGE(N25:N36)","v":3.3333333333333335},{"$f":"MAX(O25:O36)","v":6906},{"$f":"AVERAGE(P25:P36)","v":3.43},{"$f":"MAX(Q25:Q36)","v":42.93}]
[]
[]
[]
[]
[]
[]
[]
[]
[]
[]
[]
[]
[]
["Comments :"]
["Environment Agency explanatory note: The 10-minute average ELV is based on the “95th percentile”. In this case this means that 95% of the 10 minute averages in the relevant 24-hour period (i.e. 137) must be below 150 mg/Nm3, and 5% (i.e. 7) are allowed to be any value above 150 mg/Nm3. Whilst we expect operators to minimise CO emissions at all times, it is perfectly acceptable for the value of the maximum 10-minute average to be above 150 mg/Nm3, provided the 95th percentile ELV has been met for that period. "]

{"sheet":"CO 0.5 hourly","index":22,"n_rows":82,"n_cols":17,"rows_kept":82,"cut":false,"hidden":false,"merged":[[4,0,5,6],[6,16,10,18],[12,16,14,18],[15,16,18,18],[69,9,81,9],[7,1,7,3],[7,4,7,6],[7,9,7,14],[9,9,21,9],[24,9,36,9],[39,9,51,9],[50,0,50,6],[51,0,54,6],[54,9,66,9]]}
[{"$f":"+'Cover Page'!$B$29","v":"Annual Performance Report 2023"},null,null,null,{"$f":"+'Cover Page'!$B$33","v":"Ferrybridge 2"}]
[]
["Monitoring of Carbon Monoxide (half hourly)",null,null,"Whole Installation",null,null,"See  Notes in Cell Q3",null,null,{"$f":"+A3","v":"Monitoring of Carbon Monoxide (half hourly)"},null,null,null,"Per Combustion Line",null,null,"Notes:"]
[]
["Please complete this tab for your plant if you have 1/2 hourly CO ELVs; otherwise, leave it blank and complete the CO 95% 10 min tab"]
[]
[null,null,null,null,null,null,null,null,null,null,null,null,null,null,null,null,"User to add logic to complete Whole installation, Table A5:G18. From the data in Per Combustion Line, Table J6:O79, subject to No. of lines installed"]
["mg/Nm3","1/2 Hourly Reference Periods",null,null,"Daily Reference Periods"]
[{"$f":"+'Cover Page'!C39","v":2023},"1/2 hourly CO ELV","Monthly 1/2 hourly mean","Highest 1/2 hourly maximum","Daily CO ELV","Monthly daily mean","Highest daily maximum",null,null,{"$f":"+A9","v":2023},"mg/Nm3","Monthly 1/2 hourly mean","Monthly 1/2 hourly maximum","Monthly daily mean","Monthly daily maximum"]
["Jan",100,null,null,50,null,null,null,null,"A1","Jan"]
["Feb",{"$f":"+B10","v":100},null,null,{"$f":"+E10","v":50},null,null,null,null,null,"Feb"]
["Mar",{"$f":"+B11","v":100},null,null,{"$f":"+E11","v":50},null,null,null,null,null,"Mar",null,null,null,null,null,"Whole Installation table A5:G18:"]
["Apr",100,null,null,50,null,null,null,null,null,"Apr",null,null,null,null,null,"Mean: for 1/2 hourly and daily periods calculate mean of values across all operational combustion lines for the month"]
["May",100,null,null,50,null,null,null,null,null,"May"]
["Jun",100,null,null,50,null,null,null,null,null,"Jun"]
["Jul",100,null,null,50,null,null,null,null,null,"Jul",null,null,null,null,null,"Maximum: for 1/2 hourly and daily periods use the highest value across all operational combustion lines for the month"]
["Aug",100,null,null,50,null,null,null,null,null,"Aug"]
["Sep",100,null,null,50,null,null,null,null,null,"Sep"]
["Oct",100,null,null,50,null,null,null,null,null,"Oct"]
["Nov",100,null,null,50,null,null,null,null,null,"Nov"]
["Dec",100,null,null,50,null,null,null,null,null,"Dec"]
[null,null,null,null,null,null,null,null,null,null,"Annual",{"$f":"AVERAGE(L10:L21)","v":{"$error":"#DIV/0!"}},{"$f":"MAX(M10:M21)","v":0},{"$f":"AVERAGE(N10:N21)","v":{"$error":"#DIV/0!"}},{"$f":"MAX(O10:O21)","v":0}]
[]
[null,null,null,null,null,null,null,null,null,{"$f":"+A9","v":2023},"mg/Nm3","Monthly 1/2 hourly mean","Monthly 1/2 hourly maximum","Monthly daily mean","Monthly daily maximum"]
[null,null,null,null,null,null,null,null,null,"A2","Jan"]
[null,null,null,null,null,null,null,null,null,null,"Feb"]
[null,null,null,null,null,null,null,null,null,null,"Mar"]
[null,null,null,null,null,null,null,null,null,null,"Apr"]
[null,null,null,null,null,null,null,null,null,null,"May"]
[null,null,null,null,null,null,null,null,null,null,"Jun"]
[null,null,null,null,null,null,null,null,null,null,"Jul"]
[null,null,null,null,null,null,null,null,null,null,"Aug"]
[null,null,null,null,null,null,null,null,null,null,"Sep"]
[null,null,null,null,null,null,null,null,null,null,"Oct"]
[null,null,null,null,null,null,null,null,null,null,"Nov"]
[null,null,null,null,null,null,null,null,null,null,"Dec"]
[null,null,null,null,null,null,null,null,null,null,"Annual",{"$f":"AVERAGE(L25:L36)","v":{"$error":"#DIV/0!"}},{"$f":"MAX(M25:M36)","v":0},{"$f":"AVERAGE(N25:N36)","v":{"$error":"#DIV/0!"}},{"$f":"MAX(O25:O36)","v":0}]
[]
[null,null,null,null,null,null,null,null,null,{"$f":"+A9","v":2023},"mg/Nm3","Monthly 1/2 hourly mean","Monthly 1/2 hourly maximum","Monthly daily mean","Monthly daily maximum"]
[null,null,null,null,null,null,null,null,null,"A3","Jan"]
[null,null,null,null,null,null,null,null,null,null,"Feb"]
[null,null,null,null,null,null,null,null,null,null,"Mar"]
[null,null,null,null,null,null,null,null,null,null,"Apr"]
[null,null,null,null,null,null,null,null,null,null,"May"]
[null,null,null,null,null,null,null,null,null,null,"Jun"]
[null,null,null,null,null,null,null,null,null,null,"Jul"]
[null,null,null,null,null,null,null,null,null,null,"Aug"]
[null,null,null,null,null,null,null,null,null,null,"Sep"]
[null,null,null,null,null,null,null,null,null,null,"Oct"]
[null,null,null,null,null,null,null,null,null,null,"Nov"]
["Comments :",null,null,null,null,null,null,null,null,null,"Dec"]
[null,null,null,null,null,null,null,null,null,null,"Annual",{"$f":"AVERAGE(L40:L51)","v":{"$error":"#DIV/0!"}},{"$f":"MAX(M40:M51)","v":0},{"$f":"AVERAGE(N40:N51)","v":{"$error":"#DIV/0!"}},{"$f":"MAX(O40:O51)","v":0}]
[]
[null,null,null,null,null,null,null,null,null,{"$f":"+A9","v":2023},"mg/Nm3","Monthly 1/2 hourly mean","Monthly 1/2 hourly maximum","Monthly daily mean","Monthly daily maximum"]
[null,null,null,null,null,null,null,null,null,"A4","Jan"]
[null,null,null,null,null,null,null,null,null,null,"Feb"]
[null,null,null,null,null,null,null,null,null,null,"Mar"]
[null,null,null,null,null,null,null,null,null,null,"Apr"]
[null,null,null,null,null,null,null,null,null,null,"May"]
[null,null,null,null,null,null,null,null,null,null,"Jun"]
[null,null,null,null,null,null,null,null,null,null,"Jul"]
[null,null,null,null,null,null,null,null,null,null,"Aug"]
[null,null,null,null,null,null,null,null,null,null,"Sep"]
[null,null,null,null,null,null,null,null,null,null,"Oct"]
[null,null,null,null,null,null,null,null,null,null,"Nov"]
[null,null,null,null,null,null,null,null,null,null,"Dec"]
[null,null,null,null,null,null,null,null,null,null,"Annual",{"$f":"AVERAGE(L55:L66)","v":{"$error":"#DIV/0!"}},{"$f":"MAX(M55:M66)","v":0},{"$f":"AVERAGE(N55:N66)","v":{"$error":"#DIV/0!"}},{"$f":"MAX(O55:O66)","v":0}]
[]
[null,null,null,null,null,null,null,null,null,{"$f":"+A9","v":2023},"mg/Nm3","Monthly 1/2 hourly mean","Monthly 1/2 hourly maximum","Monthly daily mean","Monthly daily maximum"]
[null,null,null,null,null,null,null,null,null,"A5","Jan"]
[null,null,null,null,null,null,null,null,null,null,"Feb"]
[null,null,null,null,null,null,null,null,null,null,"Mar"]
[null,null,null,null,null,null,null,null,null,null,"Apr"]
[null,null,null,null,null,null,null,null,null,null,"May"]
[null,null,null,null,null,null,null,null,null,null,"Jun"]
[null,null,null,null,null,null,null,null,null,null,"Jul"]
[null,null,null,null,null,null,null,null,null,null,"Aug"]
[null,null,null,null,null,null,null,null,null,null,"Sep"]
[null,null,null,null,null,null,null,null,null,null,"Oct"]
[null,null,null,null,null,null,null,null,null,null,"Nov"]
[null,null,null,null,null,null,null,null,null,null,"Dec"]
[null,null,null,null,null,null,null,null,null,null,"Annual",{"$f":"AVERAGE(L70:L81)","v":{"$error":"#DIV/0!"}},{"$f":"MAX(M70:M81)","v":0},{"$f":"AVERAGE(N70:N81)","v":{"$error":"#DIV/0!"}},{"$f":"MAX(O70:O81)","v":0}]